Workbook

Sheet HinweisMakro (hidden)

Sheet Eingabe
L2: Messsystemanalyse Verfahren 7 attributive Merkmale (Bosch Heft Nr. 10 / AIAG)
B6: Teil | C6: Prüfergebnisse | L6: Refe-renz | M6: Ref. Wert | N6: Code | AF6: Dieser Bereich wird nicht gedruckt
C7: A-1 | D7: A-2 | E7: A-3 | F7: B-1 | G7: B-2 | H7: B-3 | I7: C-1 | J7: C-2 | K7: C-3 | Q7: Merkmal | X7: Messmittel
B8: 1 | C8: 1 | D8: 1 | E8: 1 | F8: 1 | G8: 1 | H8: 1 | I8: 1 | J8: 1 | K8: 1 | L8: 1 | N8: =IF(C8<>"",IF(SUM(C8:K8)=COUNT(C8:K8),"+",IF(SUM(C8:K8)=0,"-","x")),"") -> + | Q8: Bezeichnung | X8: Name | AF8: Die Vorlage enthält einige Einschränkungen:
B9: =B8+1 -> 2 | C9: 1 | D9: 1 | E9: 1 | F9: 1 | G9: 1 | H9: 1 | I9: 1 | J9: 1 | K9: 1 | L9: 1 | N9: =IF(C9<>"",IF(SUM(C9:K9)=COUNT(C9:K9),"+",IF(SUM(C9:K9)=0,"-","x")),"") -> + | Q9: Merkmalsnummer | X9: Nummer | AF9: ="- das Wasserzeichen ""www.sixsigmablackbeltde""" -> - das Wasserzeichen "www.sixsigmablackbeltde"
B10: 3 | C10: 0 | D10: 0 | E10: 0 | F10: 0 | G10: 0 | H10: 0 | I10: 0 | J10: 0 | K10: 0 | L10: 0 | N10: - | Q10: Masseinheit | X10: Standort | AF10: ="- ein Teil der Zellen ist gesperrt" -> - ein Teil der Zellen ist gesperrt
B11: 4 | C11: 0 | D11: 0 | E11: 0 | F11: 0 | G11: 0 | H11: 0 | I11: 0 | J11: 0 | K11: 0 | L11: 0 | N11: - | Q11: Zeichnungsnummer | X11: Kalibrierschein | AF11: ="- etc." -> - etc.
B12: 5 | C12: 0 | D12: 0 | E12: 0 | F12: 0 | G12: 0 | H12: 0 | I12: 0 | J12: 0 | K12: 0 | L12: 0 | N12: - | Q12: Änderungsstand
B13: 6 | C13: 1 | D13: 1 | E13: 0 | F13: 1 | G13: 1 | H13: 0 | I13: 1 | J13: 0 | K13: 0 | L13: 1 | N13: x | X13: Bewertung Ergebnis / Fleiss Kappa | AF13: Benötigen Sie die Vorlage
B14: 7 | C14: 1 | D14: 1 | E14: 1 | F14: 1 | G14: 1 | H14: 1 | I14: 1 | J14: 0 | K14: 1 | L14: 1 | N14: x | Q14: Prüfer A | U14: Prüfer A | X14: Ergebnis <= | AA14: 0.7 | AB14: 0.8 | AC14: 1 | AF14: ="- ohne Einschränkungen" -> - ohne Einschränkungen
B15: 8 | C15: 1 | D15: 1 | E15: 1 | F15: 1 | G15: 1 | H15: 1 | I15: 1 | J15: 1 | K15: 1 | L15: 1 | N15: + | Q15: Prüfer B | U15: Prüfer B | X15: Fleiss Kappa <= | AA15: 0.7 | AB15: 0.8 | AC15: 1 | AF15: ="- in englischer Sprache" -> - in englischer Sprache
B16: 9 | C16: 0 | D16: 0 | E16: 0 | F16: 0 | G16: 0 | H16: 0 | I16: 0 | J16: 0 | K16: 0 | L16: 0 | N16: - | Q16: Prüfer C | U16: Prüfer C | X16: Spezifikation | AF16: ="- mit Ihrem Logo" -> - mit Ihrem Logo
B17: 10 | C17: 1 | D17: 1 | E17: 1 | F17: 1 | G17: 1 | H17: 1 | I17: 1 | J17: 1 | K17: 1 | L17: 1 | N17: + | Q17: Prüfdatum | X17: Untere Spez.-Grenze | AF17: schreiben Sie an
B18: 11 | C18: 1 | D18: 1 | E18: 1 | F18: 1 | G18: 1 | H18: 1 | I18: 1 | J18: 1 | K18: 1 | L18: 1 | N18: + | Q18: Prüfung durch | X18: Obere Spez.-Grenze | AF18: roland.schnurr@sixsigmablackbelt.de
B19: 12 | C19: 0 | D19: 0 | E19: 0 | F19: 0 | G19: 0 | H19: 0 | I19: 0 | J19: 1 | K19: 0 | L19: 0 | N19: x | Q19: Prüfung durch Name | X19: Auflösung
B20: 13 | C20: 1 | D20: 1 | E20: 1 | F20: 1 | G20: 1 | H20: 1 | I20: 1 | J20: 1 | K20: 1 | L20: 1 | N20: + | AF20: Eine Übersicht unserer Vorlagen und deren Kosten finden Sie unter:
B21: 14 | C21: 1 | D21: 1 | E21: 0 | F21: 1 | G21: 1 | H21: 1 | I21: 1 | J21: 0 | K21: 0 | L21: 1 | N21: x | Q21: Anzahl Durchgänge | U21: =IF(C8<>"",COUNT(C8:E8),"") -> 3 | AF21: https://www.sixsigmablackbelt.de/preisvergleich/
B22: 15 | C22: 1 | D22: 1 | E22: 1 | F22: 1 | G22: 1 | H22: 1 | I22: 1 | J22: 1 | K22: 1 | L22: 1 | N22: + | Q22: Anzahl Teile | U22: =IF(C8<>"",COUNT(C8:C27),"") -> 20
B23: 16 | C23: 1 | D23: 1 | E23: 1 | F23: 1 | G23: 1 | H23: 1 | I23: 1 | J23: 1 | K23: 1 | L23: 1 | N23: + | Q23: Anzahl Prüfer | U23: =IF(C8<>"",COUNT(C8,F8,I8),"") -> 3 | AF23: Ein Auszug der Unternehmen, die uns vertrauen finden Sie unter:
B24: 17 | C24: 1 | D24: 1 | E24: 1 | F24: 1 | G24: 1 | H24: 1 | I24: 1 | J24: 1 | K24: 1 | L24: 1 | N24: + | AF24: https://www.sixsigmablackbelt.de/referenzen/
B25: 18 | C25: 1 | D25: 1 | E25: 1 | F25: 1 | G25: 1 | H25: 1 | I25: 1 | J25: 1 | K25: 1 | L25: 1 | N25: + | P25: Prüfer
B26: 19 | C26: 1 | D26: 1 | E26: 1 | F26: 1 | G26: 1 | H26: 1 | I26: 1 | J26: 1 | K26: 1 | L26: 1 | N26: + | S26: Innerhalb Prüfer | Y26: Zwischen den Prüfern | AF26: Die Validierung der Vorlagen mit Minitab und R, finden Sie unter:
B27: 20 | C27: 1 | D27: 1 | E27: 1 | F27: 1 | G27: 1 | H27: 1 | I27: 1 | J27: 1 | K27: 1 | L27: 1 | N27: + | S27: =U14 -> Prüfer A | U27: =U15 -> Prüfer B | W27: =U16 -> Prüfer C | AF27: https://www.sixsigmablackbelt.de/preisvergleich/
B28: 21 | C28: 1 | D28: 1 | E28: 0 | F28: 1 | G28: 0 | H28: 1 | I28: 0 | J28: 1 | K28: 0 | L28: 1 | N28: x | P28: Geprüft gesamt | S28: =Berechnung!S28 -> 50 | U28: =Berechnung!U28 -> 50 | W28: =Berechnung!W28 -> 50 | Y28: =Berechnung!Y28 -> 50
B29: 22 | C29: 0 | D29: 0 | E29: 1 | F29: 0 | G29: 1 | H29: 0 | I29: 1 | J29: 1 | K29: 0 | L29: 0 | N29: x | P29: Anzahl richtig | S29: =Berechnung!S29 -> 42 | U29: =Berechnung!U29 -> 45 | W29: =Berechnung!W29 -> 40 | Y29: =Berechnung!Y29 -> 39
B30: 23 | C30: 1 | D30: 1 | E30: 1 | F30: 1 | G30: 1 | H30: 1 | I30: 1 | J30: 1 | K30: 1 | L30: 1 | N30: + | P30: 95% obere CI | S30: =Berechnung!S30 -> 0.9282992328 | U30: =Berechnung!U30 -> 0.9667249064 | W30: =Berechnung!W30 -> 0.8996977625 | Y30: =Berechnung!Y30 -> 0.884734174
B31: 24 | C31: 1 | D31: 1 | E31: 1 | F31: 1 | G31: 1 | H31: 1 | I31: 1 | J31: 1 | K31: 1 | L31: 1 | N31: + | P31: Ergebnis | S31: =Berechnung!S31 -> 0.84 | U31: =Berechnung!U31 -> 0.9 | W31: =Berechnung!W31 -> 0.8 | Y31: =Berechnung!Y31 -> 0.78
B32: 25 | C32: 0 | D32: 0 | E32: 0 | F32: 0 | G32: 0 | H32: 0 | I32: 0 | J32: 0 | K32: 0 | L32: 0 | N32: - | P32: 95% untere CI | S32: =Berechnung!S32 -> 0.7088736934 | U32: =Berechnung!U32 -> 0.7818646336 | W32: =Berechnung!W32 -> 0.6628168916 | Y32: =Berechnung!Y32 -> 0.6403881114
B33: 26 | C33: 0 | D33: 1 | E33: 0 | F33: 0 | G33: 0 | H33: 0 | I33: 0 | J33: 0 | K33: 1 | L33: 0 | N33: x | P33: Fleiss Kappa | S33: =Berechnung!S33 -> 0.76 | U33: =Berechnung!U33 -> 0.845073332 | W33: =Berechnung!W33 -> 0.7029114676 | Y33: =Berechnung!Y33 -> 0.7936056918
B34: 27 | C34: 1 | D34: 1 | E34: 1 | F34: 1 | G34: 1 | H34: 1 | I34: 1 | J34: 1 | K34: 1 | L34: 1 | N34: +
B35: 28 | C35: 1 | D35: 1 | E35: 1 | F35: 1 | G35: 1 | H35: 1 | I35: 1 | J35: 1 | K35: 1 | L35: 1 | N35: + | P35: Prüfer vs. Referenz
B36: 29 | C36: 1 | D36: 1 | E36: 1 | F36: 1 | G36: 1 | H36: 1 | I36: 1 | J36: 1 | K36: 1 | L36: 1 | N36: + | S36: Einzelne Prüfer vs. Referenz | Y36: Alle Prüfer vs. Referenz
B37: 30 | C37: 0 | D37: 0 | E37: 0 | F37: 0 | G37: 0 | H37: 1 | I37: 0 | J37: 0 | K37: 0 | L37: 0 | N37: x | S37: =S27 -> Prüfer A | U37: =U27 -> Prüfer B | W37: =W27 -> Prüfer C
B38: 31 | C38: 1 | D38: 1 | E38: 1 | F38: 1 | G38: 1 | H38: 1 | I38: 1 | J38: 1 | K38: 1 | L38: 1 | N38: =IF(C38<>"",IF(SUM(C38:K38)=9,"+",IF(SUM(C38:K38)=0,"-","x")),"") -> + | P38: Geprüft gesamt | S38: =Berechnung!S38 -> 50 | U38: =Berechnung!U38 -> 50 | W38: =Berechnung!W38 -> 50 | Y38: =Berechnung!Y38 -> 50
B39: 32 | C39: 1 | D39: 1 | E39: 1 | F39: 1 | G39: 1 | H39: 1 | I39: 1 | J39: 1 | K39: 1 | L39: 1 | N39: + | P39: Anzahl richtig | S39: =Berechnung!S39 -> 42 | U39: =Berechnung!U39 -> 45 | W39: =Berechnung!W39 -> 40 | Y39: =Berechnung!Y39 -> 39
B40: 33 | C40: 1 | D40: 1 | E40: 1 | F40: 1 | G40: 1 | H40: 1 | I40: 1 | J40: 1 | K40: 1 | L40: 1 | N40: + | P40: falsch positiv | S40: =Berechnung!S40 -> 0 | U40: =Berechnung!U40 -> 0 | W40: =Berechnung!W40 -> 0
B41: 34 | C41: 0 | D41: 0 | E41: 1 | F41: 0 | G41: 0 | H41: 1 | I41: 0 | J41: 1 | K41: 1 | L41: 0 | N41: x | P41: falsch negativ | S41: =Berechnung!S41 -> 0 | U41: =Berechnung!U41 -> 0 | W41: =Berechnung!W41 -> 0
B42: 35 | C42: 1 | D42: 1 | E42: 1 | F42: 1 | G42: 1 | H42: 1 | I42: 1 | J42: 1 | K42: 1 | L42: 1 | N42: + | P42: gemixt | S42: =Berechnung!S42 -> 8 | U42: =Berechnung!U42 -> 5 | W42: =Berechnung!W42 -> 10
B43: 36 | C43: 1 | D43: 1 | E43: 0 | F43: 1 | G43: 1 | H43: 1 | I43: 1 | J43: 0 | K43: 1 | L43: 1 | N43: x | P43: 95% obere CI | S43: =Berechnung!S43 -> 0.9282992328 | U43: =Berechnung!U43 -> 0.9667249064 | W43: =Berechnung!W43 -> 0.8996977625 | Y43: =Berechnung!Y43 -> 0.884734174
B44: 37 | C44: 0 | D44: 0 | E44: 0 | F44: 0 | G44: 0 | H44: 0 | I44: 0 | J44: 0 | K44: 0 | L44: 0 | N44: - | P44: Ergebnis | S44: =Berechnung!S44 -> 0.84 | U44: =Berechnung!U44 -> 0.9 | W44: =Berechnung!W44 -> 0.8 | Y44: =Berechnung!Y44 -> 0.78
B45: 38 | C45: 1 | D45: 1 | E45: 1 | F45: 1 | G45: 1 | H45: 1 | I45: 1 | J45: 1 | K45: 1 | L45: 1 | N45: + | P45: 95% untere CI | S45: =Berechnung!S45 -> 0.7088736934 | U45: =Berechnung!U45 -> 0.7818646336 | W45: =Berechnung!W45 -> 0.6628168916 | Y45: =Berechnung!Y45 -> 0.6403881114
B46: 39 | C46: 0 | D46: 0 | E46: 0 | F46: 0 | G46: 0 | H46: 0 | I46: 0 | J46: 0 | K46: 0 | L46: 0 | N46: - | P46: Fleiss Kappa | S46: =Berechnung!S46 -> 0.8802361854 | U46: =Berechnung!U46 -> 0.922611927 | W46: =Berechnung!W46 -> 0.774703244 | Y46: =Berechnung!Y46 -> 0.8591837855
B47: 40 | C47: 1 | D47: 1 | E47: 1 | F47: 1 | G47: 1 | H47: 1 | I47: 1 | J47: 1 | K47: 1 | L47: 1 | N47: +
B48: =B47+1 -> 41 | C48: 1 | D48: 1 | E48: 1 | F48: 1 | G48: 1 | H48: 1 | I48: 1 | J48: 1 | K48: 1 | L48: 1 | N48: =IF(C48<>"",IF(SUM(C48:K48)=9,"+",IF(SUM(C48:K48)=0,"-","x")),"") -> + | P48: Anmerkungen:
B49: =B48+1 -> 42 | C49: 0 | D49: 0 | E49: 0 | F49: 0 | G49: 0 | H49: 0 | I49: 0 | J49: 0 | K49: 0 | L49: 0 | N49: - | P49: Mindestens 3 Prüfer und 3 Durchgänge, ansonsten falsche Ergebnisse
B50: 43 | C50: 1 | D50: 0 | E50: 1 | F50: 1 | G50: 1 | H50: 1 | I50: 1 | J50: 1 | K50: 0 | L50: 1 | N50: x | P50: Bosch ermittelt aus allen Kappa Werten den Minimalwert und bewertet anhand dessen
B51: 44 | C51: 1 | D51: 1 | E51: 1 | F51: 1 | G51: 1 | H51: 1 | I51: 1 | J51: 1 | K51: 1 | L51: 1 | N51: + | P51: das Messsystem
B52: 45 | C52: 0 | D52: 0 | E52: 0 | F52: 0 | G52: 0 | H52: 0 | I52: 0 | J52: 0 | K52: 0 | L52: 0 | N52: -
B53: 46 | C53: 1 | D53: 1 | E53: 1 | F53: 1 | G53: 1 | H53: 1 | I53: 1 | J53: 1 | K53: 1 | L53: 1 | N53: +
B54: 47 | C54: 1 | D54: 1 | E54: 1 | F54: 1 | G54: 1 | H54: 1 | I54: 1 | J54: 1 | K54: 1 | L54: 1 | N54: +
B55: 48 | C55: 0 | D55: 0 | E55: 0 | F55: 0 | G55: 0 | H55: 0 | I55: 0 | J55: 0 | K55: 0 | L55: 0 | N55: -
B56: 49 | C56: 1 | D56: 1 | E56: 1 | F56: 1 | G56: 1 | H56: 1 | I56: 1 | J56: 1 | K56: 1 | L56: 1 | N56: +
B57: 50 | C57: 0 | D57: 0 | E57: 0 | F57: 0 | G57: 0 | H57: 0 | I57: 0 | J57: 0 | K57: 0 | L57: 0 | N57: -

Sheet Musterwerte Validierung Info
A1: Info und Kontakt | C1: roland.schnurr@sixsigmablackbelt.de
A2: Homepage: | C2: www.sixsigmablackbelt.de
A4: Werte aus Bosch Heft Nr. 10 | M4: Werte berechnet mit Minitab
A5: A-1 | B5: A-2 | C5: A-3 | D5: B-1 | E5: B-2 | F5: B-3 | G5: C-1 | H5: C-2 | I5: C-3 | J5: Referenz | Z5: A-1 | AA5: A-2 | AB5: A-3 | AC5: B-1 | AD5: B-2 | AE5: B-3 | AF5: C-1 | AG5: C-2 | AH5: C-3 | AI5: Referenz
A6: 1 | B6: 1 | C6: 1 | D6: 1 | E6: 1 | F6: 1 | G6: 1 | H6: 1 | I6: 1 | J6: 1 | Z6: 1 | AA6: 1 | AB6: 1 | AC6: 1 | AD6: 1 | AE6: 1 | AF6: 1 | AG6: 1 | AH6: 1 | AI6: 1
A7: 1 | B7: 1 | C7: 1 | D7: 1 | E7: 1 | F7: 1 | G7: 1 | H7: 1 | I7: 1 | J7: 1 | Z7: 1 | AA7: 1 | AB7: 1 | AC7: 1 | AD7: 1 | AE7: 1 | AF7: 1 | AG7: 1 | AH7: 1 | AI7: 1
A8: 0 | B8: 0 | C8: 0 | D8: 0 | E8: 0 | F8: 0 | G8: 0 | H8: 0 | I8: 0 | J8: 0 | Z8: 0 | AA8: 0 | AB8: 0 | AC8: 0 | AD8: 0 | AE8: 0 | AF8: 0 | AG8: 0 | AH8: 0 | AI8: 0
A9: 0 | B9: 0 | C9: 0 | D9: 0 | E9: 0 | F9: 0 | G9: 0 | H9: 0 | I9: 0 | J9: 0 | Z9: 0 | AA9: 0 | AB9: 0 | AC9: 0 | AD9: 0 | AE9: 0 | AF9: 0 | AG9: 0 | AH9: 0 | AI9: 0
A10: 0 | B10: 0 | C10: 0 | D10: 0 | E10: 0 | F10: 0 | G10: 0 | H10: 0 | I10: 0 | J10: 0 | Z10: 0 | AA10: 0 | AB10: 0 | AC10: 0 | AD10: 0 | AE10: 0 | AF10: 0 | AG10: 0 | AH10: 0 | AI10: 0
A11: 1 | B11: 1 | C11: 0 | D11: 1 | E11: 1 | F11: 0 | G11: 1 | H11: 0 | I11: 0 | J11: 1 | Z11: 1 | AA11: 1 | AB11: 0 | AC11: 1 | AD11: 1 | AE11: 0 | AF11: 1 | AG11: 0 | AH11: 0 | AI11: 1
A12: 1 | B12: 1 | C12: 1 | D12: 1 | E12: 1 | F12: 1 | G12: 1 | H12: 0 | I12: 1 | J12: 1 | Z12: 1 | AA12: 1 | AB12: 1 | AC12: 1 | AD12: 1 | AE12: 1 | AF12: 1 | AG12: 0 | AH12: 1 | AI12: 1
A13: 1 | B13: 1 | C13: 1 | D13: 1 | E13: 1 | F13: 1 | G13: 1 | H13: 1 | I13: 1 | J13: 1 | Z13: 1 | AA13: 1 | AB13: 1 | AC13: 1 | AD13: 1 | AE13: 1 | AF13: 1 | AG13: 1 | AH13: 1 | AI13: 1
A14: 0 | B14: 0 | C14: 0 | D14: 0 | E14: 0 | F14: 0 | G14: 0 | H14: 0 | I14: 0 | J14: 0 | Z14: 0 | AA14: 0 | AB14: 0 | AC14: 0 | AD14: 0 | AE14: 0 | AF14: 0 | AG14: 0 | AH14: 0 | AI14: 0
A15: 1 | B15: 1 | C15: 1 | D15: 1 | E15: 1 | F15: 1 | G15: 1 | H15: 1 | I15: 1 | J15: 1 | Z15: 1 | AA15: 1 | AB15: 1 | AC15: 1 | AD15: 1 | AE15: 1 | AF15: 1 | AG15: 1 | AH15: 1 | AI15: 1
A16: 1 | B16: 1 | C16: 1 | D16: 1 | E16: 1 | F16: 1 | G16: 1 | H16: 1 | I16: 1 | J16: 1 | Z16: 1 | AA16: 1 | AB16: 1 | AC16: 1 | AD16: 1 | AE16: 1 | AF16: 1 | AG16: 1 | AH16: 1 | AI16: 1
A17: 0 | B17: 0 | C17: 0 | D17: 0 | E17: 0 | F17: 0 | G17: 0 | H17: 1 | I17: 0 | J17: 0 | Z17: 0 | AA17: 0 | AB17: 0 | AC17: 0 | AD17: 0 | AE17: 0 | AF17: 0 | AG17: 1 | AH17: 0 | AI17: 0
A18: 1 | B18: 1 | C18: 1 | D18: 1 | E18: 1 | F18: 1 | G18: 1 | H18: 1 | I18: 1 | J18: 1 | Z18: 1 | AA18: 1 | AB18: 1 | AC18: 1 | AD18: 1 | AE18: 1 | AF18: 1 | AG18: 1 | AH18: 1 | AI18: 1
A19: 1 | B19: 1 | C19: 0 | D19: 1 | E19: 1 | F19: 1 | G19: 1 | H19: 0 | I19: 0 | J19: 1 | Z19: 1 | AA19: 1 | AB19: 0 | AC19: 1 | AD19: 1 | AE19: 1 | AF19: 1 | AG19: 0 | AH19: 0 | AI19: 1
A20: 1 | B20: 1 | C20: 1 | D20: 1 | E20: 1 | F20: 1 | G20: 1 | H20: 1 | I20: 1 | J20: 1 | Z20: 1 | AA20: 1 | AB20: 1 | AC20: 1 | AD20: 1 | AE20: 1 | AF20: 1 | AG20: 1 | AH20: 1 | AI20: 1
A21: 1 | B21: 1 | C21: 1 | D21: 1 | E21: 1 | F21: 1 | G21: 1 | H21: 1 | I21: 1 | J21: 1 | Z21: 1 | AA21: 1 | AB21: 1 | AC21: 1 | AD21: 1 | AE21: 1 | AF21: 1 | AG21: 1 | AH21: 1 | AI21: 1
A22: 1 | B22: 1 | C22: 1 | D22: 1 | E22: 1 | F22: 1 | G22: 1 | H22: 1 | I22: 1 | J22: 1 | Z22: 1 | AA22: 1 | AB22: 1 | AC22: 1 | AD22: 1 | AE22: 1 | AF22: 1 | AG22: 1 | AH22: 1 | AI22: 1
A23: 1 | B23: 1 | C23: 1 | D23: 1 | E23: 1 | F23: 1 | G23: 1 | H23: 1 | I23: 1 | J23: 1 | Z23: 1 | AA23: 1 | AB23: 1 | AC23: 1 | AD23: 1 | AE23: 1 | AF23: 1 | AG23: 1 | AH23: 1 | AI23: 1
A24: 1 | B24: 1 | C24: 1 | D24: 1 | E24: 1 | F24: 1 | G24: 1 | H24: 1 | I24: 1 | J24: 1 | Z24: 1 | AA24: 1 | AB24: 1 | AC24: 1 | AD24: 1 | AE24: 1 | AF24: 1 | AG24: 1 | AH24: 1 | AI24: 1
A25: 1 | B25: 1 | C25: 1 | D25: 1 | E25: 1 | F25: 1 | G25: 1 | H25: 1 | I25: 1 | J25: 1 | Z25: 1 | AA25: 1 | AB25: 1 | AC25: 1 | AD25: 1 | AE25: 1 | AF25: 1 | AG25: 1 | AH25: 1 | AI25: 1
A26: 1 | B26: 1 | C26: 0 | D26: 1 | E26: 0 | F26: 1 | G26: 0 | H26: 1 | I26: 0 | J26: 1
A27: 0 | B27: 0 | C27: 1 | D27: 0 | E27: 1 | F27: 0 | G27: 1 | H27: 1 | I27: 0 | J27: 0
A28: 1 | B28: 1 | C28: 1 | D28: 1 | E28: 1 | F28: 1 | G28: 1 | H28: 1 | I28: 1 | J28: 1
A29: 1 | B29: 1 | C29: 1 | D29: 1 | E29: 1 | F29: 1 | G29: 1 | H29: 1 | I29: 1 | J29: 1
A30: 0 | B30: 0 | C30: 0 | D30: 0 | E30: 0 | F30: 0 | G30: 0 | H30: 0 | I30: 0 | J30: 0
A31: 0 | B31: 1 | C31: 0 | D31: 0 | E31: 0 | F31: 0 | G31: 0 | H31: 0 | I31: 1 | J31: 0
A32: 1 | B32: 1 | C32: 1 | D32: 1 | E32: 1 | F32: 1 | G32: 1 | H32: 1 | I32: 1 | J32: 1
A33: 1 | B33: 1 | C33: 1 | D33: 1 | E33: 1 | F33: 1 | G33: 1 | H33: 1 | I33: 1 | J33: 1
A34: 1 | B34: 1 | C34: 1 | D34: 1 | E34: 1 | F34: 1 | G34: 1 | H34: 1 | I34: 1 | J34: 1
A35: 0 | B35: 0 | C35: 0 | D35: 0 | E35: 0 | F35: 1 | G35: 0 | H35: 0 | I35: 0 | J35: 0
A36: 1 | B36: 1 | C36: 1 | D36: 1 | E36: 1 | F36: 1 | G36: 1 | H36: 1 | I36: 1 | J36: 1
A37: 1 | B37: 1 | C37: 1 | D37: 1 | E37: 1 | F37: 1 | G37: 1 | H37: 1 | I37: 1 | J37: 1
A38: 1 | B38: 1 | C38: 1 | D38: 1 | E38: 1 | F38: 1 | G38: 1 | H38: 1 | I38: 1 | J38: 1
A39: 0 | B39: 0 | C39: 1 | D39: 0 | E39: 0 | F39: 1 | G39: 0 | H39: 1 | I39: 1 | J39: 0
A40: 1 | B40: 1 | C40: 1 | D40: 1 | E40: 1 | F40: 1 | G40: 1 | H40: 1 | I40: 1 | J40: 1
A41: 1 | B41: 1 | C41: 0 | D41: 1 | E41: 1 | F41: 1 | G41: 1 | H41: 0 | I41: 1 | J41: 1
A42: 0 | B42: 0 | C42: 0 | D42: 0 | E42: 0 | F42: 0 | G42: 0 | H42: 0 | I42: 0 | J42: 0
A43: 1 | B43: 1 | C43: 1 | D43: 1 | E43: 1 | F43: 1 | G43: 1 | H43: 1 | I43: 1 | J43: 1
A44: 0 | B44: 0 | C44: 0 | D44: 0 | E44: 0 | F44: 0 | G44: 0 | H44: 0 | I44: 0 | J44: 0
A45: 1 | B45: 1 | C45: 1 | D45: 1 | E45: 1 | F45: 1 | G45: 1 | H45: 1 | I45: 1 | J45: 1
A46: 1 | B46: 1 | C46: 1 | D46: 1 | E46: 1 | F46: 1 | G46: 1 | H46: 1 | I46: 1 | J46: 1
A47: 0 | B47: 0 | C47: 0 | D47: 0 | E47: 0 | F47: 0 | G47: 0 | H47: 0 | I47: 0 | J47: 0
A48: 1 | B48: 0 | C48: 1 | D48: 1 | E48: 1 | F48: 1 | G48: 1 | H48: 1 | I48: 0 | J48: 1
A49: 1 | B49: 1 | C49: 1 | D49: 1 | E49: 1 | F49: 1 | G49: 1 | H49: 1 | I49: 1 | J49: 1
A50: 0 | B50: 0 | C50: 0 | D50: 0 | E50: 0 | F50: 0 | G50: 0 | H50: 0 | I50: 0 | J50: 0
A51: 1 | B51: 1 | C51: 1 | D51: 1 | E51: 1 | F51: 1 | G51: 1 | H51: 1 | I51: 1 | J51: 1
A52: 1 | B52: 1 | C52: 1 | D52: 1 | E52: 1 | F52: 1 | G52: 1 | H52: 1 | I52: 1 | J52: 1
A53: 0 | B53: 0 | C53: 0 | D53: 0 | E53: 0 | F53: 0 | G53: 0 | H53: 0 | I53: 0 | J53: 0
A54: 1 | B54: 1 | C54: 1 | D54: 1 | E54: 1 | F54: 1 | G54: 1 | H54: 1 | I54: 1 | J54: 1
A55: 0 | B55: 0 | C55: 0 | D55: 0 | E55: 0 | F55: 0 | G55: 0 | H55: 0 | I55: 0 | J55: 0

Sheet Berechnung (hidden)
L2: Messsystemanalyse Verfahren 7 attributive Merkmale (Bosch Heft Nr. 10 / AIAG)
AG3: =TODAY() -> 2023-05-16 | AI3: 2023-05-16 | AJ3: =IF(AG3=AI3,1,0) -> 1 | BA3: A*B*C
BA4: nik | BD4: nik*(Nik-1)
AG5: 3 Durchl | AI5: mix | AJ5: 2 Durchl. | BA5: k=1 | BB5: K=2 | BD5: k=1 | BE5: K=2
B6: Part | C6: Appraiser-Evaluation | L6: Stan-dard | M6: Standard Value | N6: Code | AG6: A | AO6: B | AS6: C | AW6: All | BA6: 0 | BB6: 1 | BD6: 0 | BE6: 1 | BJ6: A*A | BL6: B*B | BO6: C*C | BT6: A1-Ref | BU6: A2-Ref | BV6: A3-Ref | BW6: B1-Ref | BX6: B2-Ref | BY6: B3-Ref | BZ6: C1-Ref | CA6: C2-Ref | CB6: C3-Ref
C7: A-1 | D7: A-2 | E7: A-3 | F7: B-1 | G7: B-2 | H7: B-3 | I7: C-1 | J7: C-2 | K7: C-3 | AG7: =IF(C8<>"",IF(AND(C8=D8,D8=E8),1,0),"") -> 1 | AH7: =IF(C8<>"",IF(AND(C8=D8,D8=E8,E8=L8),1,0),"") -> 1 | AI7: =IF(AG7<>"",IF(AG7<>AH7,$L8,""),"") ->  | AJ7: =IF(C8<>"",IF(AND(C8=D8),1,0),"") -> 1 | AK7: =IF(C8<>"",IF(AND(C8=D8,D8=L8),1,0),"") -> 1 | AL7: =IF(AJ7<>"",IF(AJ7<>AK7,$L8,""),"") ->  | AO7: =IF(F8<>"",IF(AND(F8=G8,F8=H8),1,0),"") -> 1 | AP7: =IF(F8<>"",IF(AND(F8=G8,G8=H8,H8=L8),1,0),"") -> 1 | AQ7: =IF(AO7<>"",IF(AO7<>AP7,L8,""),"") ->  | AS7: =IF(I8<>"",IF(AND(I8=J8,J8=K8),1,0),"") -> 1 | AT7: =IF(I8<>"",IF(AND(I8=J8,J8=K8,K8=L8),1,0),"") -> 1 | AU7: =IF(AS7<>"",IF(AS7<>AT7,L8,""),"") ->  | AW7: =IF(C8<>"",IF(OR(SUM(C8:K8)=COUNT(C8:K8),SUM(C8:K8)=0),1,0),"") -> 1 | AX7: =IF(AT7<>"",IF(AH7+AP7+AT7=3,1,0),"") -> 1
B8: 1 | C8: =IF(Eingabe!C8="","",Eingabe!C8) -> 1 | D8: =IF(Eingabe!D8="","",Eingabe!D8) -> 1 | E8: =IF(Eingabe!E8="","",Eingabe!E8) -> 1 | F8: =IF(Eingabe!F8="","",Eingabe!F8) -> 1 | G8: =IF(Eingabe!G8="","",Eingabe!G8) -> 1 | H8: =IF(Eingabe!H8="","",Eingabe!H8) -> 1 | I8: =IF(Eingabe!I8="","",Eingabe!I8) -> 1 | J8: =IF(Eingabe!J8="","",Eingabe!J8) -> 1 | K8: =IF(Eingabe!K8="","",Eingabe!K8) -> 1 | L8: =IF(Eingabe!L8="","",Eingabe!L8) -> 1 | N8: =IF(C8<>"",IF(SUM(C8:K8)=COUNT(C8:K8),"+",IF(SUM(C8:K8)=0,"-","x")),"") -> + | Q8: Reference Value | X8: Date Preformed | AG8: 1 | AH8: 1 | AI8: =IF(AG8<>"",IF(AG8<>AH8,$L9,""),"") ->  | AJ8: =IF(C9<>"",IF(AND(C9=D9),1,0),"") -> 1 | AK8: =IF(C9<>"",IF(AND(C9=D9,D9=L9),1,0),"") -> 1 | AL8: =IF(AJ8<>"",IF(AJ8<>AK8,$L9,""),"") ->  | AO8: 1 | AP8: 1 | AS8: 1 | AT8: 1 | AW8: 1 | AX8: =IF(AT8<>"",IF(AH8+AP8+AT8=3,1,0),"") -> 1 | BA8: =COUNTIF(C8:K8,0) -> 0 | BB8: =COUNTIF(C8:K8,1) -> 9 | BD8: =BA8*(BA8-1) -> 0 | BE8: =BB8*(BB8-1) -> 72 | BG8: =IF(C8="","",IF(C8=D8,2,0)) -> 2 | BH8: =IF(E8="","",IF(C8=E8,2,0)) -> 2 | BI8: =IF(D8="","",IF(D8=E8,2,0)) -> 2 | BJ8: =SUM(BG8:BI8) -> 6 | BK8: =IF(G8="","",IF(F8=G8,2,0)) -> 2 | BL8: =IF(H8="","",IF(F8=H8,2,0)) -> 2 | BM8: =IF(H8="","",IF(G8=H8,2,0)) -> 2 | BN8: =SUM(BK8:BM8) -> 6 | BO8: =IF(J8="","",IF(I8=J8,2,0)) -> 2 | BP8: =IF(K8="","",IF(I8=K8,2,0)) -> 2 | BQ8: =IF(K8="","",IF(J8=K8,2,0)) -> 2 | BR8: =SUM(BO8:BQ8) -> 6 | BS8: =BD8+BE8 -> 72 | BT8: =IF(C8="","",IF(C8=$L8,2,0)) -> 2 | BU8: =IF(D8="","",IF(D8=$L8,2,0)) -> 2 | BV8: =IF(E8="","",IF(E8=$L8,2,0)) -> 2 | BW8: =IF(F8="","",IF(F8=$L8,2,0)) -> 2 | BX8: =IF(G8="","",IF(G8=$L8,2,0)) -> 2 | BY8: =IF(H8="","",IF(H8=$L8,2,0)) -> 2 | BZ8: =IF(I8="","",IF(I8=$L8,2,0)) -> 2 | CA8: =IF(J8="","",IF(J8=$L8,2,0)) -> 2 | CB8: =IF(K8="","",IF(K8=$L8,2,0)) -> 2
B9: =B8+1 -> 2 | C9: =IF(Eingabe!C9="","",Eingabe!C9) -> 1 | D9: =IF(Eingabe!D9="","",Eingabe!D9) -> 1 | E9: =IF(Eingabe!E9="","",Eingabe!E9) -> 1 | F9: =IF(Eingabe!F9="","",Eingabe!F9) -> 1 | G9: =IF(Eingabe!G9="","",Eingabe!G9) -> 1 | H9: =IF(Eingabe!H9="","",Eingabe!H9) -> 1 | I9: =IF(Eingabe!I9="","",Eingabe!I9) -> 1 | J9: =IF(Eingabe!J9="","",Eingabe!J9) -> 1 | K9: =IF(Eingabe!K9="","",Eingabe!K9) -> 1 | L9: =IF(Eingabe!L9="","",Eingabe!L9) -> 1 | N9: =IF(C9<>"",IF(SUM(C9:K9)=COUNT(C9:K9),"+",IF(SUM(C9:K9)=0,"-","x")),"") -> + | Q9: Specification Number | X9: Gage Name | AG9: 1 | AH9: 1 | AJ9: 1 | AK9: 1 | AO9: 1 | AP9: 1 | AS9: 1 | AT9: 1 | AW9: 1 | AX9: 1 | BA9: 0 | BB9: 9 | BD9: =BA9*(BA9-1) -> 0 | BE9: 72 | BG9: 2 | BH9: 2 | BI9: 2 | BJ9: =SUM(BG9:BI9) -> 6 | BK9: 2 | BL9: 2 | BM9: 2 | BN9: =SUM(BK9:BM9) -> 6 | BO9: 2 | BP9: 2 | BQ9: 2 | BR9: =SUM(BO9:BQ9) -> 6 | BS9: =BD9+BE9 -> 72 | BT9: 2 | BU9: 2 | BV9: 2 | BW9: 2 | BX9: 2 | BY9: 2 | BZ9: 2 | CA9: 2 | CB9: 2
B10: 3 | C10: =IF(Eingabe!C10="","",Eingabe!C10) -> 0 | D10: =IF(Eingabe!D10="","",Eingabe!D10) -> 0 | E10: =IF(Eingabe!E10="","",Eingabe!E10) -> 0 | F10: =IF(Eingabe!F10="","",Eingabe!F10) -> 0 | G10: =IF(Eingabe!G10="","",Eingabe!G10) -> 0 | H10: =IF(Eingabe!H10="","",Eingabe!H10) -> 0 | I10: =IF(Eingabe!I10="","",Eingabe!I10) -> 0 | J10: =IF(Eingabe!J10="","",Eingabe!J10) -> 0 | K10: =IF(Eingabe!K10="","",Eingabe!K10) -> 0 | L10: =IF(Eingabe!L10="","",Eingabe!L10) -> 0 | N10: - | Q10: Characteristic Name | X10: Gage Number | AG10: 1 | AH10: 1 | AJ10: 1 | AK10: 1 | AO10: 1 | AP10: 1 | AS10: 1 | AT10: 1 | AW10: 1 | AX10: 1 | BA10: 9 | BB10: 0 | BD10: 72 | BE10: 0 | BG10: 2 | BH10: 2 | BI10: 2 | BJ10: 6 | BK10: 2 | BL10: 2 | BM10: 2 | BN10: 6 | BO10: 2 | BP10: 2 | BQ10: 2 | BR10: 6 | BS10: 72 | BT10: 2 | BU10: 2 | BV10: 2 | BW10: 2 | BX10: 2 | BY10: 2 | BZ10: 2 | CA10: 2 | CB10: 2
B11: 4 | C11: =IF(Eingabe!C11="","",Eingabe!C11) -> 0 | D11: =IF(Eingabe!D11="","",Eingabe!D11) -> 0 | E11: =IF(Eingabe!E11="","",Eingabe!E11) -> 0 | F11: =IF(Eingabe!F11="","",Eingabe!F11) -> 0 | G11: =IF(Eingabe!G11="","",Eingabe!G11) -> 0 | H11: =IF(Eingabe!H11="","",Eingabe!H11) -> 0 | I11: =IF(Eingabe!I11="","",Eingabe!I11) -> 0 | J11: =IF(Eingabe!J11="","",Eingabe!J11) -> 0 | K11: =IF(Eingabe!K11="","",Eingabe!K11) -> 0 | L11: =IF(Eingabe!L11="","",Eingabe!L11) -> 0 | N11: - | Q11: Characteristic Type | X11: Gage Type | AG11: 1 | AH11: 1 | AJ11: 1 | AK11: 1 | AO11: 1 | AP11: 1 | AS11: 1 | AT11: 1 | AW11: 1 | AX11: 1 | BA11: 9 | BB11: 0 | BD11: 72 | BE11: 0 | BG11: 2 | BH11: 2 | BI11: 2 | BJ11: 6 | BK11: 2 | BL11: 2 | BM11: 2 | BN11: 6 | BO11: 2 | BP11: 2 | BQ11: 2 | BR11: 6 | BS11: 72 | BT11: 2 | BU11: 2 | BV11: 2 | BW11: 2 | BX11: 2 | BY11: 2 | BZ11: 2 | CA11: 2 | CB11: 2
B12: 5 | C12: =IF(Eingabe!C12="","",Eingabe!C12) -> 0 | D12: =IF(Eingabe!D12="","",Eingabe!D12) -> 0 | E12: =IF(Eingabe!E12="","",Eingabe!E12) -> 0 | F12: =IF(Eingabe!F12="","",Eingabe!F12) -> 0 | G12: =IF(Eingabe!G12="","",Eingabe!G12) -> 0 | H12: =IF(Eingabe!H12="","",Eingabe!H12) -> 0 | I12: =IF(Eingabe!I12="","",Eingabe!I12) -> 0 | J12: =IF(Eingabe!J12="","",Eingabe!J12) -> 0 | K12: =IF(Eingabe!K12="","",Eingabe!K12) -> 0 | L12: =IF(Eingabe!L12="","",Eingabe!L12) -> 0 | N12: - | Q12: TPS Anzahl | AG12: 0 | AH12: 0 | AJ12: 1 | AK12: 1 | AO12: 0 | AP12: 0 | AS12: 0 | AT12: 0 | AW12: 0 | AX12: 0 | BA12: 9 | BB12: 0 | BD12: 72 | BE12: 0 | BG12: 2 | BH12: 2 | BI12: 2 | BJ12: 6 | BK12: 2 | BL12: 2 | BM12: 2 | BN12: 6 | BO12: 2 | BP12: 2 | BQ12: 2 | BR12: 6 | BS12: 72 | BT12: 2 | BU12: 2 | BV12: 2 | BW12: 2 | BX12: 2 | BY12: 2 | BZ12: 2 | CA12: 2 | CB12: 2
B13: 6 | C13: =IF(Eingabe!C13="","",Eingabe!C13) -> 1 | D13: =IF(Eingabe!D13="","",Eingabe!D13) -> 1 | E13: =IF(Eingabe!E13="","",Eingabe!E13) -> 0 | F13: =IF(Eingabe!F13="","",Eingabe!F13) -> 1 | G13: =IF(Eingabe!G13="","",Eingabe!G13) -> 1 | H13: =IF(Eingabe!H13="","",Eingabe!H13) -> 0 | I13: =IF(Eingabe!I13="","",Eingabe!I13) -> 1 | J13: =IF(Eingabe!J13="","",Eingabe!J13) -> 0 | K13: =IF(Eingabe!K13="","",Eingabe!K13) -> 0 | L13: =IF(Eingabe!L13="","",Eingabe!L13) -> 1 | N13: x | X13: Score < | AA13: 0.81 | AB13: 0.95 | AC13: 1 | AG13: 1 | AH13: 1 | AJ13: 1 | AK13: 1 | AO13: 1 | AP13: 1 | AS13: 0 | AT13: 0 | AW13: 0 | AX13: 0 | BA13: 4 | BB13: 5 | BD13: 12 | BE13: 20 | BG13: 2 | BH13: 0 | BI13: 0 | BJ13: 2 | BK13: 2 | BL13: 0 | BM13: 0 | BN13: 2 | BO13: 0 | BP13: 0 | BQ13: 2 | BR13: 2 | BS13: 32 | BT13: 2 | BU13: 2 | BV13: 0 | BW13: 2 | BX13: 2 | BY13: 0 | BZ13: 2 | CA13: 0 | CB13: 0
B14: 7 | C14: =IF(Eingabe!C14="","",Eingabe!C14) -> 1 | D14: =IF(Eingabe!D14="","",Eingabe!D14) -> 1 | E14: =IF(Eingabe!E14="","",Eingabe!E14) -> 1 | F14: =IF(Eingabe!F14="","",Eingabe!F14) -> 1 | G14: =IF(Eingabe!G14="","",Eingabe!G14) -> 1 | H14: =IF(Eingabe!H14="","",Eingabe!H14) -> 1 | I14: =IF(Eingabe!I14="","",Eingabe!I14) -> 1 | J14: =IF(Eingabe!J14="","",Eingabe!J14) -> 0 | K14: =IF(Eingabe!K14="","",Eingabe!K14) -> 1 | L14: =IF(Eingabe!L14="","",Eingabe!L14) -> 1 | N14: x | Q14: Prüfer A | U14: Prüfer A | X14: Fleiss Kappa < | AA14: 0.81 | AB14: 0.95 | AC14: 1 | AG14: 1 | AH14: 1 | AJ14: 1 | AK14: 1 | AO14: 1 | AP14: 1 | AS14: 1 | AT14: 1 | AW14: 1 | AX14: 1 | BA14: 1 | BB14: 8 | BD14: 0 | BE14: 56 | BG14: 2 | BH14: 2 | BI14: 2 | BJ14: 6 | BK14: 2 | BL14: 2 | BM14: 2 | BN14: 6 | BO14: 0 | BP14: 2 | BQ14: 0 | BR14: 2 | BS14: 56 | BT14: 2 | BU14: 2 | BV14: 2 | BW14: 2 | BX14: 2 | BY14: 2 | BZ14: 2 | CA14: 0 | CB14: 2
B15: 8 | C15: =IF(Eingabe!C15="","",Eingabe!C15) -> 1 | D15: =IF(Eingabe!D15="","",Eingabe!D15) -> 1 | E15: =IF(Eingabe!E15="","",Eingabe!E15) -> 1 | F15: =IF(Eingabe!F15="","",Eingabe!F15) -> 1 | G15: =IF(Eingabe!G15="","",Eingabe!G15) -> 1 | H15: =IF(Eingabe!H15="","",Eingabe!H15) -> 1 | I15: =IF(Eingabe!I15="","",Eingabe!I15) -> 1 | J15: =IF(Eingabe!J15="","",Eingabe!J15) -> 1 | K15: =IF(Eingabe!K15="","",Eingabe!K15) -> 1 | L15: =IF(Eingabe!L15="","",Eingabe!L15) -> 1 | N15: + | Q15: Prüfer B | U15: Prüfer B | X15: Specifications | AG15: 1 | AH15: 1 | AJ15: 1 | AK15: 1 | AO15: 1 | AP15: 1 | AS15: 1 | AT15: 1 | AW15: 1 | AX15: 1 | BA15: 0 | BB15: 9 | BD15: 0 | BE15: 72 | BG15: 2 | BH15: 2 | BI15: 2 | BJ15: 6 | BK15: 2 | BL15: 2 | BM15: 2 | BN15: 6 | BO15: 2 | BP15: 2 | BQ15: 2 | BR15: 6 | BS15: 72 | BT15: 2 | BU15: 2 | BV15: 2 | BW15: 2 | BX15: 2 | BY15: 2 | BZ15: 2 | CA15: 2 | CB15: 2
B16: 9 | C16: =IF(Eingabe!C16="","",Eingabe!C16) -> 0 | D16: =IF(Eingabe!D16="","",Eingabe!D16) -> 0 | E16: =IF(Eingabe!E16="","",Eingabe!E16) -> 0 | F16: =IF(Eingabe!F16="","",Eingabe!F16) -> 0 | G16: =IF(Eingabe!G16="","",Eingabe!G16) -> 0 | H16: =IF(Eingabe!H16="","",Eingabe!H16) -> 0 | I16: =IF(Eingabe!I16="","",Eingabe!I16) -> 0 | J16: =IF(Eingabe!J16="","",Eingabe!J16) -> 0 | K16: =IF(Eingabe!K16="","",Eingabe!K16) -> 0 | L16: =IF(Eingabe!L16="","",Eingabe!L16) -> 0 | N16: - | Q16: Prüfer C | U16: Prüfer C | X16: - LSL | AG16: 1 | AH16: 1 | AJ16: 1 | AK16: 1 | AO16: 1 | AP16: 1 | AS16: 1 | AT16: 1 | AW16: 1 | AX16: 1 | BA16: 9 | BB16: 0 | BD16: 72 | BE16: 0 | BG16: 2 | BH16: 2 | BI16: 2 | BJ16: 6 | BK16: 2 | BL16: 2 | BM16: 2 | BN16: 6 | BO16: 2 | BP16: 2 | BQ16: 2 | BR16: 6 | BS16: 72 | BT16: 2 | BU16: 2 | BV16: 2 | BW16: 2 | BX16: 2 | BY16: 2 | BZ16: 2 | CA16: 2 | CB16: 2
B17: 10 | C17: =IF(Eingabe!C17="","",Eingabe!C17) -> 1 | D17: =IF(Eingabe!D17="","",Eingabe!D17) -> 1 | E17: =IF(Eingabe!E17="","",Eingabe!E17) -> 1 | F17: =IF(Eingabe!F17="","",Eingabe!F17) -> 1 | G17: =IF(Eingabe!G17="","",Eingabe!G17) -> 1 | H17: =IF(Eingabe!H17="","",Eingabe!H17) -> 1 | I17: =IF(Eingabe!I17="","",Eingabe!I17) -> 1 | J17: =IF(Eingabe!J17="","",Eingabe!J17) -> 1 | K17: =IF(Eingabe!K17="","",Eingabe!K17) -> 1 | L17: =IF(Eingabe!L17="","",Eingabe!L17) -> 1 | N17: + | Q17: Prüfdatum | X17: - USL | AG17: 1 | AH17: 1 | AJ17: 1 | AK17: 1 | AO17: 1 | AP17: 1 | AS17: 1 | AT17: 1 | AW17: 1 | AX17: 1 | BA17: 0 | BB17: 9 | BD17: 0 | BE17: 72 | BG17: 2 | BH17: 2 | BI17: 2 | BJ17: 6 | BK17: 2 | BL17: 2 | BM17: 2 | BN17: 6 | BO17: 2 | BP17: 2 | BQ17: 2 | BR17: 6 | BS17: 72 | BT17: 2 | BU17: 2 | BV17: 2 | BW17: 2 | BX17: 2 | BY17: 2 | BZ17: 2 | CA17: 2 | CB17: 2
B18: 11 | C18: =IF(Eingabe!C18="","",Eingabe!C18) -> 1 | D18: =IF(Eingabe!D18="","",Eingabe!D18) -> 1 | E18: =IF(Eingabe!E18="","",Eingabe!E18) -> 1 | F18: =IF(Eingabe!F18="","",Eingabe!F18) -> 1 | G18: =IF(Eingabe!G18="","",Eingabe!G18) -> 1 | H18: =IF(Eingabe!H18="","",Eingabe!H18) -> 1 | I18: =IF(Eingabe!I18="","",Eingabe!I18) -> 1 | J18: =IF(Eingabe!J18="","",Eingabe!J18) -> 1 | K18: =IF(Eingabe!K18="","",Eingabe!K18) -> 1 | L18: =IF(Eingabe!L18="","",Eingabe!L18) -> 1 | N18: + | Q18: Prüfung durch Id | X18: Resolution | AG18: 1 | AH18: 1 | AJ18: 1 | AK18: 1 | AO18: 1 | AP18: 1 | AS18: 0 | AT18: 0 | AW18: 0 | AX18: 0 | BA18: 0 | BB18: 9 | BD18: 0 | BE18: 72 | BG18: 2 | BH18: 2 | BI18: 2 | BJ18: 6 | BK18: 2 | BL18: 2 | BM18: 2 | BN18: 6 | BO18: 2 | BP18: 2 | BQ18: 2 | BR18: 6 | BS18: 72 | BT18: 2 | BU18: 2 | BV18: 2 | BW18: 2 | BX18: 2 | BY18: 2 | BZ18: 2 | CA18: 2 | CB18: 2
B19: 12 | C19: =IF(Eingabe!C19="","",Eingabe!C19) -> 0 | D19: =IF(Eingabe!D19="","",Eingabe!D19) -> 0 | E19: =IF(Eingabe!E19="","",Eingabe!E19) -> 0 | F19: =IF(Eingabe!F19="","",Eingabe!F19) -> 0 | G19: =IF(Eingabe!G19="","",Eingabe!G19) -> 0 | H19: =IF(Eingabe!H19="","",Eingabe!H19) -> 0 | I19: =IF(Eingabe!I19="","",Eingabe!I19) -> 0 | J19: =IF(Eingabe!J19="","",Eingabe!J19) -> 1 | K19: =IF(Eingabe!K19="","",Eingabe!K19) -> 0 | L19: =IF(Eingabe!L19="","",Eingabe!L19) -> 0 | N19: x | Q19: Prüfung durch Name | AG19: 1 | AH19: 1 | AJ19: 1 | AK19: 1 | AO19: 1 | AP19: 1 | AS19: 1 | AT19: 1 | AW19: 1 | AX19: 1 | BA19: 8 | BB19: 1 | BD19: 56 | BE19: 0 | BG19: 2 | BH19: 2 | BI19: 2 | BJ19: 6 | BK19: 2 | BL19: 2 | BM19: 2 | BN19: 6 | BO19: 0 | BP19: 2 | BQ19: 0 | BR19: 2 | BS19: 56 | BT19: 2 | BU19: 2 | BV19: 2 | BW19: 2 | BX19: 2 | BY19: 2 | BZ19: 2 | CA19: 0 | CB19: 2
B20: 13 | C20: =IF(Eingabe!C20="","",Eingabe!C20) -> 1 | D20: =IF(Eingabe!D20="","",Eingabe!D20) -> 1 | E20: =IF(Eingabe!E20="","",Eingabe!E20) -> 1 | F20: =IF(Eingabe!F20="","",Eingabe!F20) -> 1 | G20: =IF(Eingabe!G20="","",Eingabe!G20) -> 1 | H20: =IF(Eingabe!H20="","",Eingabe!H20) -> 1 | I20: =IF(Eingabe!I20="","",Eingabe!I20) -> 1 | J20: =IF(Eingabe!J20="","",Eingabe!J20) -> 1 | K20: =IF(Eingabe!K20="","",Eingabe!K20) -> 1 | L20: =IF(Eingabe!L20="","",Eingabe!L20) -> 1 | N20: + | AG20: 0 | AH20: 0 | AJ20: 1 | AK20: 1 | AO20: 1 | AP20: 1 | AS20: 0 | AT20: 0 | AW20: 0 | AX20: 0 | BA20: 0 | BB20: 9 | BD20: 0 | BE20: 72 | BG20: 2 | BH20: 2 | BI20: 2 | BJ20: 6 | BK20: 2 | BL20: 2 | BM20: 2 | BN20: 6 | BO20: 2 | BP20: 2 | BQ20: 2 | BR20: 6 | BS20: 72 | BT20: 2 | BU20: 2 | BV20: 2 | BW20: 2 | BX20: 2 | BY20: 2 | BZ20: 2 | CA20: 2 | CB20: 2
B21: 14 | C21: =IF(Eingabe!C21="","",Eingabe!C21) -> 1 | D21: =IF(Eingabe!D21="","",Eingabe!D21) -> 1 | E21: =IF(Eingabe!E21="","",Eingabe!E21) -> 0 | F21: =IF(Eingabe!F21="","",Eingabe!F21) -> 1 | G21: =IF(Eingabe!G21="","",Eingabe!G21) -> 1 | H21: =IF(Eingabe!H21="","",Eingabe!H21) -> 1 | I21: =IF(Eingabe!I21="","",Eingabe!I21) -> 1 | J21: =IF(Eingabe!J21="","",Eingabe!J21) -> 0 | K21: =IF(Eingabe!K21="","",Eingabe!K21) -> 0 | L21: =IF(Eingabe!L21="","",Eingabe!L21) -> 1 | N21: x | Q21: Anzahl Durchgänge | U21: =IF(C8<>"",COUNT(C8:E8),"") -> 3 | AG21: 1 | AH21: 1 | AJ21: 1 | AK21: 1 | AO21: 1 | AP21: 1 | AS21: 1 | AT21: 1 | AW21: 1 | AX21: 1 | BA21: 3 | BB21: 6 | BD21: 6 | BE21: 30 | BG21: 2 | BH21: 0 | BI21: 0 | BJ21: 2 | BK21: 2 | BL21: 2 | BM21: 2 | BN21: 6 | BO21: 0 | BP21: 0 | BQ21: 2 | BR21: 2 | BS21: 36 | BT21: 2 | BU21: 2 | BV21: 0 | BW21: 2 | BX21: 2 | BY21: 2 | BZ21: 2 | CA21: 0 | CB21: 0
B22: 15 | C22: =IF(Eingabe!C22="","",Eingabe!C22) -> 1 | D22: =IF(Eingabe!D22="","",Eingabe!D22) -> 1 | E22: =IF(Eingabe!E22="","",Eingabe!E22) -> 1 | F22: =IF(Eingabe!F22="","",Eingabe!F22) -> 1 | G22: =IF(Eingabe!G22="","",Eingabe!G22) -> 1 | H22: =IF(Eingabe!H22="","",Eingabe!H22) -> 1 | I22: =IF(Eingabe!I22="","",Eingabe!I22) -> 1 | J22: =IF(Eingabe!J22="","",Eingabe!J22) -> 1 | K22: =IF(Eingabe!K22="","",Eingabe!K22) -> 1 | L22: =IF(Eingabe!L22="","",Eingabe!L22) -> 1 | N22: + | Q22: Anzahl Teile | U22: =IF(C8<>"",COUNT(C8:C57),"") -> 50 | AG22: 1 | AH22: 1 | AJ22: 1 | AK22: 1 | AO22: 1 | AP22: 1 | AS22: 1 | AT22: 1 | AW22: 1 | AX22: 1 | BA22: 0 | BB22: 9 | BD22: 0 | BE22: 72 | BG22: 2 | BH22: 2 | BI22: 2 | BJ22: 6 | BK22: 2 | BL22: 2 | BM22: 2 | BN22: 6 | BO22: 2 | BP22: 2 | BQ22: 2 | BR22: 6 | BS22: 72 | BT22: 2 | BU22: 2 | BV22: 2 | BW22: 2 | BX22: 2 | BY22: 2 | BZ22: 2 | CA22: 2 | CB22: 2
B23: 16 | C23: =IF(Eingabe!C23="","",Eingabe!C23) -> 1 | D23: =IF(Eingabe!D23="","",Eingabe!D23) -> 1 | E23: =IF(Eingabe!E23="","",Eingabe!E23) -> 1 | F23: =IF(Eingabe!F23="","",Eingabe!F23) -> 1 | G23: =IF(Eingabe!G23="","",Eingabe!G23) -> 1 | H23: =IF(Eingabe!H23="","",Eingabe!H23) -> 1 | I23: =IF(Eingabe!I23="","",Eingabe!I23) -> 1 | J23: =IF(Eingabe!J23="","",Eingabe!J23) -> 1 | K23: =IF(Eingabe!K23="","",Eingabe!K23) -> 1 | L23: =IF(Eingabe!L23="","",Eingabe!L23) -> 1 | N23: + | Q23: Anzahl of Prüfer | U23: =IF(C8<>"",COUNT(C8,F8,I8),"") -> 3 | AG23: 1 | AH23: 1 | AJ23: 1 | AK23: 1 | AO23: 1 | AP23: 1 | AS23: 1 | AT23: 1 | AW23: 1 | AX23: 1 | BA23: 0 | BB23: 9 | BD23: 0 | BE23: 72 | BG23: 2 | BH23: 2 | BI23: 2 | BJ23: 6 | BK23: 2 | BL23: 2 | BM23: 2 | BN23: 6 | BO23: 2 | BP23: 2 | BQ23: 2 | BR23: 6 | BS23: 72 | BT23: 2 | BU23: 2 | BV23: 2 | BW23: 2 | BX23: 2 | BY23: 2 | BZ23: 2 | CA23: 2 | CB23: 2
B24: 17 | C24: =IF(Eingabe!C24="","",Eingabe!C24) -> 1 | D24: =IF(Eingabe!D24="","",Eingabe!D24) -> 1 | E24: =IF(Eingabe!E24="","",Eingabe!E24) -> 1 | F24: =IF(Eingabe!F24="","",Eingabe!F24) -> 1 | G24: =IF(Eingabe!G24="","",Eingabe!G24) -> 1 | H24: =IF(Eingabe!H24="","",Eingabe!H24) -> 1 | I24: =IF(Eingabe!I24="","",Eingabe!I24) -> 1 | J24: =IF(Eingabe!J24="","",Eingabe!J24) -> 1 | K24: =IF(Eingabe!K24="","",Eingabe!K24) -> 1 | L24: =IF(Eingabe!L24="","",Eingabe!L24) -> 1 | N24: + | AG24: 1 | AH24: 1 | AJ24: 1 | AK24: 1 | AO24: 1 | AP24: 1 | AS24: 1 | AT24: 1 | AW24: 1 | AX24: 1 | BA24: 0 | BB24: 9 | BD24: 0 | BE24: 72 | BG24: 2 | BH24: 2 | BI24: 2 | BJ24: 6 | BK24: 2 | BL24: 2 | BM24: 2 | BN24: 6 | BO24: 2 | BP24: 2 | BQ24: 2 | BR24: 6 | BS24: 72 | BT24: 2 | BU24: 2 | BV24: 2 | BW24: 2 | BX24: 2 | BY24: 2 | BZ24: 2 | CA24: 2 | CB24: 2
B25: 18 | C25: =IF(Eingabe!C25="","",Eingabe!C25) -> 1 | D25: =IF(Eingabe!D25="","",Eingabe!D25) -> 1 | E25: =IF(Eingabe!E25="","",Eingabe!E25) -> 1 | F25: =IF(Eingabe!F25="","",Eingabe!F25) -> 1 | G25: =IF(Eingabe!G25="","",Eingabe!G25) -> 1 | H25: =IF(Eingabe!H25="","",Eingabe!H25) -> 1 | I25: =IF(Eingabe!I25="","",Eingabe!I25) -> 1 | J25: =IF(Eingabe!J25="","",Eingabe!J25) -> 1 | K25: =IF(Eingabe!K25="","",Eingabe!K25) -> 1 | L25: =IF(Eingabe!L25="","",Eingabe!L25) -> 1 | N25: + | P25: Prüfer | AG25: 1 | AH25: 1 | AJ25: 1 | AK25: 1 | AO25: 1 | AP25: 1 | AS25: 1 | AT25: 1 | AW25: 1 | AX25: 1 | BA25: 0 | BB25: 9 | BD25: 0 | BE25: 72 | BG25: 2 | BH25: 2 | BI25: 2 | BJ25: 6 | BK25: 2 | BL25: 2 | BM25: 2 | BN25: 6 | BO25: 2 | BP25: 2 | BQ25: 2 | BR25: 6 | BS25: 72 | BT25: 2 | BU25: 2 | BV25: 2 | BW25: 2 | BX25: 2 | BY25: 2 | BZ25: 2 | CA25: 2 | CB25: 2
B26: 19 | C26: =IF(Eingabe!C26="","",Eingabe!C26) -> 1 | D26: =IF(Eingabe!D26="","",Eingabe!D26) -> 1 | E26: =IF(Eingabe!E26="","",Eingabe!E26) -> 1 | F26: =IF(Eingabe!F26="","",Eingabe!F26) -> 1 | G26: =IF(Eingabe!G26="","",Eingabe!G26) -> 1 | H26: =IF(Eingabe!H26="","",Eingabe!H26) -> 1 | I26: =IF(Eingabe!I26="","",Eingabe!I26) -> 1 | J26: =IF(Eingabe!J26="","",Eingabe!J26) -> 1 | K26: =IF(Eingabe!K26="","",Eingabe!K26) -> 1 | L26: =IF(Eingabe!L26="","",Eingabe!L26) -> 1 | N26: + | S26: Innerhalb Prüfer | Y26: Zwischen | AG26: 1 | AH26: 1 | AJ26: 1 | AK26: 1 | AO26: 1 | AP26: 1 | AS26: 1 | AT26: 1 | AW26: 1 | AX26: 1 | BA26: 0 | BB26: 9 | BD26: 0 | BE26: 72 | BG26: 2 | BH26: 2 | BI26: 2 | BJ26: 6 | BK26: 2 | BL26: 2 | BM26: 2 | BN26: 6 | BO26: 2 | BP26: 2 | BQ26: 2 | BR26: 6 | BS26: 72 | BT26: 2 | BU26: 2 | BV26: 2 | BW26: 2 | BX26: 2 | BY26: 2 | BZ26: 2 | CA26: 2 | CB26: 2
B27: 20 | C27: =IF(Eingabe!C27="","",Eingabe!C27) -> 1 | D27: =IF(Eingabe!D27="","",Eingabe!D27) -> 1 | E27: =IF(Eingabe!E27="","",Eingabe!E27) -> 1 | F27: =IF(Eingabe!F27="","",Eingabe!F27) -> 1 | G27: =IF(Eingabe!G27="","",Eingabe!G27) -> 1 | H27: =IF(Eingabe!H27="","",Eingabe!H27) -> 1 | I27: =IF(Eingabe!I27="","",Eingabe!I27) -> 1 | J27: =IF(Eingabe!J27="","",Eingabe!J27) -> 1 | K27: =IF(Eingabe!K27="","",Eingabe!K27) -> 1 | L27: =IF(Eingabe!L27="","",Eingabe!L27) -> 1 | N27: + | S27: =U14 -> Prüfer A | U27: =U15 -> Prüfer B | W27: =U16 -> Prüfer C | Y27: Prüfer | AG27: 0 | AH27: 0 | AJ27: 1 | AK27: 1 | AO27: 0 | AP27: 0 | AS27: 0 | AT27: 0 | AW27: 0 | AX27: 0 | BA27: 0 | BB27: 9 | BD27: 0 | BE27: 72 | BG27: 2 | BH27: 2 | BI27: 2 | BJ27: 6 | BK27: 2 | BL27: 2 | BM27: 2 | BN27: 6 | BO27: 2 | BP27: 2 | BQ27: 2 | BR27: 6 | BS27: 72 | BT27: 2 | BU27: 2 | BV27: 2 | BW27: 2 | BX27: 2 | BY27: 2 | BZ27: 2 | CA27: 2 | CB27: 2
B28: 21 | C28: =IF(Eingabe!C28="","",Eingabe!C28) -> 1 | D28: =IF(Eingabe!D28="","",Eingabe!D28) -> 1 | E28: =IF(Eingabe!E28="","",Eingabe!E28) -> 0 | F28: =IF(Eingabe!F28="","",Eingabe!F28) -> 1 | G28: =IF(Eingabe!G28="","",Eingabe!G28) -> 0 | H28: =IF(Eingabe!H28="","",Eingabe!H28) -> 1 | I28: =IF(Eingabe!I28="","",Eingabe!I28) -> 0 | J28: =IF(Eingabe!J28="","",Eingabe!J28) -> 1 | K28: =IF(Eingabe!K28="","",Eingabe!K28) -> 0 | L28: =IF(Eingabe!L28="","",Eingabe!L28) -> 1 | N28: x | P28: Geprüft gesamt | S28: =IF(C8<>"",COUNT(C8:C57),"") -> 50 | U28: =IF(F8<>"",COUNT(F8:F57),"") -> 50 | W28: =IF(I8<>"",COUNT(I8:I57),"") -> 50 | Y28: =S28 -> 50 | AG28: 0 | AH28: 0 | AJ28: 1 | AK28: 1 | AO28: 0 | AP28: 0 | AS28: 0 | AT28: 0 | AW28: 0 | AX28: 0 | BA28: 4 | BB28: 5 | BD28: 12 | BE28: 20 | BG28: 2 | BH28: 0 | BI28: 0 | BJ28: 2 | BK28: 0 | BL28: 2 | BM28: 0 | BN28: 2 | BO28: 0 | BP28: 2 | BQ28: 0 | BR28: 2 | BS28: 32 | BT28: 2 | BU28: 2 | BV28: 0 | BW28: 2 | BX28: 0 | BY28: 2 | BZ28: 0 | CA28: 2 | CB28: 0
B29: 22 | C29: =IF(Eingabe!C29="","",Eingabe!C29) -> 0 | D29: =IF(Eingabe!D29="","",Eingabe!D29) -> 0 | E29: =IF(Eingabe!E29="","",Eingabe!E29) -> 1 | F29: =IF(Eingabe!F29="","",Eingabe!F29) -> 0 | G29: =IF(Eingabe!G29="","",Eingabe!G29) -> 1 | H29: =IF(Eingabe!H29="","",Eingabe!H29) -> 0 | I29: =IF(Eingabe!I29="","",Eingabe!I29) -> 1 | J29: =IF(Eingabe!J29="","",Eingabe!J29) -> 1 | K29: =IF(Eingabe!K29="","",Eingabe!K29) -> 0 | L29: =IF(Eingabe!L29="","",Eingabe!L29) -> 0 | N29: x | P29: # Matched | S29: =IF(U21=3,IF(C8<>"",SUM(AG7:AG56),""),IF(C8<>"",SUM(AJ7:AJ56),"")) -> 42 | U29: =IF(F8<>"",SUM(AO7:AO56),"") -> 45 | W29: =IF(I8<>"",SUM(AS7:AS56),"") -> 40 | Y29: =IF(S28<>"",SUM(AW7:AW56),"") -> 39 | AG29: 1 | AH29: 1 | AJ29: 1 | AK29: 1 | AO29: 1 | AP29: 1 | AS29: 1 | AT29: 1 | AW29: 1 | AX29: 1 | BA29: 5 | BB29: 4 | BD29: 20 | BE29: 12 | BG29: 2 | BH29: 0 | BI29: 0 | BJ29: 2 | BK29: 0 | BL29: 2 | BM29: 0 | BN29: 2 | BO29: 2 | BP29: 0 | BQ29: 0 | BR29: 2 | BS29: 32 | BT29: 2 | BU29: 2 | BV29: 0 | BW29: 2 | BX29: 0 | BY29: 2 | BZ29: 0 | CA29: 0 | CB29: 2
B30: 23 | C30: =IF(Eingabe!C30="","",Eingabe!C30) -> 1 | D30: =IF(Eingabe!D30="","",Eingabe!D30) -> 1 | E30: =IF(Eingabe!E30="","",Eingabe!E30) -> 1 | F30: =IF(Eingabe!F30="","",Eingabe!F30) -> 1 | G30: =IF(Eingabe!G30="","",Eingabe!G30) -> 1 | H30: =IF(Eingabe!H30="","",Eingabe!H30) -> 1 | I30: =IF(Eingabe!I30="","",Eingabe!I30) -> 1 | J30: =IF(Eingabe!J30="","",Eingabe!J30) -> 1 | K30: =IF(Eingabe!K30="","",Eingabe!K30) -> 1 | L30: =IF(Eingabe!L30="","",Eingabe!L30) -> 1 | N30: + | P30: 95% upper CI | S30: =IF(S29<>"",IF(S28=S29,1,(2*(S29+1)*FINV(0.025,2*(S29+1),2*(S28-S29)))/(2*(S28-S29)+2*(S29+1)*FINV(0.025,2*(S29+1),2*(S28-S29)))),"") -> 0.9282992328 | U30: =IF(U29<>"",IF(U28=U29,1,(2*(U29+1)*FINV(0.025,2*(U29+1),2*(U28-U29)))/(2*(U28-U29)+2*(U29+1)*FINV(0.025,2*(U29+1),2*(U28-U29)))),"") -> 0.9667249064 | W30: =IF(W29<>"",IF(W28=W29,1,(2*(W29+1)*FINV(0.025,2*(W29+1),2*(W28-W29)))/(2*(W28-W29)+2*(W29+1)*FINV(0.025,2*(W29+1),2*(W28-W29)))),"") -> 0.8996977625 | Y30: =IF(Y29<>"",IF(Y28=Y29,1,(2*(Y29+1)*FINV(0.025,2*(Y29+1),2*(Y28-Y29)))/(2*(Y28-Y29)+2*(Y29+1)*FINV(0.025,2*(Y29+1),2*(Y28-Y29)))),"") -> 0.884734174 | AG30: 1 | AH30: 1 | AJ30: 1 | AK30: 1 | AO30: 1 | AP30: 1 | AS30: 1 | AT30: 1 | AW30: 1 | AX30: 1 | BA30: 0 | BB30: 9 | BD30: 0 | BE30: 72 | BG30: 2 | BH30: 2 | BI30: 2 | BJ30: 6 | BK30: 2 | BL30: 2 | BM30: 2 | BN30: 6 | BO30: 2 | BP30: 2 | BQ30: 2 | BR30: 6 | BS30: 72 | BT30: 2 | BU30: 2 | BV30: 2 | BW30: 2 | BX30: 2 | BY30: 2 | BZ30: 2 | CA30: 2 | CB30: 2
B31: 24 | C31: =IF(Eingabe!C31="","",Eingabe!C31) -> 1 | D31: =IF(Eingabe!D31="","",Eingabe!D31) -> 1 | E31: =IF(Eingabe!E31="","",Eingabe!E31) -> 1 | F31: =IF(Eingabe!F31="","",Eingabe!F31) -> 1 | G31: =IF(Eingabe!G31="","",Eingabe!G31) -> 1 | H31: =IF(Eingabe!H31="","",Eingabe!H31) -> 1 | I31: =IF(Eingabe!I31="","",Eingabe!I31) -> 1 | J31: =IF(Eingabe!J31="","",Eingabe!J31) -> 1 | K31: =IF(Eingabe!K31="","",Eingabe!K31) -> 1 | L31: =IF(Eingabe!L31="","",Eingabe!L31) -> 1 | N31: + | P31: Ergebnis | S31: =IF(S28<>"",(S29/S28)/AJ3,"") -> 0.84 | U31: =IF(U28<>"",(U29/U28)/AJ3,"") -> 0.9 | W31: =IF(W28<>"",(W29/W28)/AJ3,"") -> 0.8 | Y31: =IF(Y28<>"",Y29/Y28,"") -> 0.78 | AG31: 1 | AH31: 1 | AJ31: 1 | AK31: 1 | AO31: 1 | AP31: 1 | AS31: 1 | AT31: 1 | AW31: 1 | AX31: 1 | BA31: 0 | BB31: 9 | BD31: 0 | BE31: 72 | BG31: 2 | BH31: 2 | BI31: 2 | BJ31: 6 | BK31: 2 | BL31: 2 | BM31: 2 | BN31: 6 | BO31: 2 | BP31: 2 | BQ31: 2 | BR31: 6 | BS31: 72 | BT31: 2 | BU31: 2 | BV31: 2 | BW31: 2 | BX31: 2 | BY31: 2 | BZ31: 2 | CA31: 2 | CB31: 2
B32: 25 | C32: =IF(Eingabe!C32="","",Eingabe!C32) -> 0 | D32: =IF(Eingabe!D32="","",Eingabe!D32) -> 0 | E32: =IF(Eingabe!E32="","",Eingabe!E32) -> 0 | F32: =IF(Eingabe!F32="","",Eingabe!F32) -> 0 | G32: =IF(Eingabe!G32="","",Eingabe!G32) -> 0 | H32: =IF(Eingabe!H32="","",Eingabe!H32) -> 0 | I32: =IF(Eingabe!I32="","",Eingabe!I32) -> 0 | J32: =IF(Eingabe!J32="","",Eingabe!J32) -> 0 | K32: =IF(Eingabe!K32="","",Eingabe!K32) -> 0 | L32: =IF(Eingabe!L32="","",Eingabe!L32) -> 0 | N32: - | P32: 95% lower CI | S32: =IF(S29<>"",IF(S29=0,0,(2*S29*FINV(0.975,2*S29,2*(S28-S29+1)))/(2*(S28-S29+1)+2*S29*FINV(0.975,2*S29,2*(S28-S29+1)))),"") -> 0.7088736934 | U32: =IF(U29<>"",IF(S29=0,0,(2*U29*FINV(0.975,2*U29,2*(U28-U29+1)))/(2*(U28-U29+1)+2*U29*FINV(0.975,2*U29,2*(U28-U29+1)))),"") -> 0.7818646336 | W32: =IF(W29<>"",IF(S29=0,0,(2*W29*FINV(0.975,2*W29,2*(W28-W29+1)))/(2*(W28-W29+1)+2*W29*FINV(0.975,2*W29,2*(W28-W29+1)))),"") -> 0.6628168916 | Y32: =IF(Y29<>"",IF(S29=0,0,(2*Y29*FINV(0.975,2*Y29,2*(Y28-Y29+1)))/(2*(Y28-Y29+1)+2*Y29*FINV(0.975,2*Y29,2*(Y28-Y29+1)))),"") -> 0.6403881114 | AG32: 0 | AH32: 0 | AJ32: 0 | AK32: 0 | AO32: 1 | AP32: 1 | AS32: 0 | AT32: 0 | AW32: 0 | AX32: 0 | BA32: 9 | BB32: 0 | BD32: 72 | BE32: 0 | BG32: 2 | BH32: 2 | BI32: 2 | BJ32: 6 | BK32: 2 | BL32: 2 | BM32: 2 | BN32: 6 | BO32: 2 | BP32: 2 | BQ32: 2 | BR32: 6 | BS32: 72 | BT32: 2 | BU32: 2 | BV32: 2 | BW32: 2 | BX32: 2 | BY32: 2 | BZ32: 2 | CA32: 2 | CB32: 2
B33: 26 | C33: =IF(Eingabe!C33="","",Eingabe!C33) -> 0 | D33: =IF(Eingabe!D33="","",Eingabe!D33) -> 1 | E33: =IF(Eingabe!E33="","",Eingabe!E33) -> 0 | F33: =IF(Eingabe!F33="","",Eingabe!F33) -> 0 | G33: =IF(Eingabe!G33="","",Eingabe!G33) -> 0 | H33: =IF(Eingabe!H33="","",Eingabe!H33) -> 0 | I33: =IF(Eingabe!I33="","",Eingabe!I33) -> 0 | J33: =IF(Eingabe!J33="","",Eingabe!J33) -> 0 | K33: =IF(Eingabe!K33="","",Eingabe!K33) -> 1 | L33: =IF(Eingabe!L33="","",Eingabe!L33) -> 0 | N33: x | P33: Fleiss Kappa | S33: =BJ73/AJ3 -> 0.76 | U33: =BN73/AJ3 -> 0.845073332 | W33: =BR73/AJ3 -> 0.7029114676 | Y33: =BS73 -> 0.7936056918 | AG33: 1 | AH33: 1 | AJ33: 1 | AK33: 1 | AO33: 1 | AP33: 1 | AS33: 1 | AT33: 1 | AW33: 1 | AX33: 1 | BA33: 7 | BB33: 2 | BD33: 42 | BE33: 2 | BG33: 0 | BH33: 2 | BI33: 0 | BJ33: 2 | BK33: 2 | BL33: 2 | BM33: 2 | BN33: 6 | BO33: 2 | BP33: 0 | BQ33: 0 | BR33: 2 | BS33: 44 | BT33: 2 | BU33: 0 | BV33: 2 | BW33: 2 | BX33: 2 | BY33: 2 | BZ33: 2 | CA33: 2 | CB33: 0
B34: 27 | C34: =IF(Eingabe!C34="","",Eingabe!C34) -> 1 | D34: =IF(Eingabe!D34="","",Eingabe!D34) -> 1 | E34: =IF(Eingabe!E34="","",Eingabe!E34) -> 1 | F34: =IF(Eingabe!F34="","",Eingabe!F34) -> 1 | G34: =IF(Eingabe!G34="","",Eingabe!G34) -> 1 | H34: =IF(Eingabe!H34="","",Eingabe!H34) -> 1 | I34: =IF(Eingabe!I34="","",Eingabe!I34) -> 1 | J34: =IF(Eingabe!J34="","",Eingabe!J34) -> 1 | K34: =IF(Eingabe!K34="","",Eingabe!K34) -> 1 | L34: =IF(Eingabe!L34="","",Eingabe!L34) -> 1 | N34: + | AG34: 1 | AH34: 1 | AJ34: 1 | AK34: 1 | AO34: 1 | AP34: 1 | AS34: 1 | AT34: 1 | AW34: 1 | AX34: 1 | BA34: 0 | BB34: 9 | BD34: 0 | BE34: 72 | BG34: 2 | BH34: 2 | BI34: 2 | BJ34: 6 | BK34: 2 | BL34: 2 | BM34: 2 | BN34: 6 | BO34: 2 | BP34: 2 | BQ34: 2 | BR34: 6 | BS34: 72 | BT34: 2 | BU34: 2 | BV34: 2 | BW34: 2 | BX34: 2 | BY34: 2 | BZ34: 2 | CA34: 2 | CB34: 2
B35: 28 | C35: =IF(Eingabe!C35="","",Eingabe!C35) -> 1 | D35: =IF(Eingabe!D35="","",Eingabe!D35) -> 1 | E35: =IF(Eingabe!E35="","",Eingabe!E35) -> 1 | F35: =IF(Eingabe!F35="","",Eingabe!F35) -> 1 | G35: =IF(Eingabe!G35="","",Eingabe!G35) -> 1 | H35: =IF(Eingabe!H35="","",Eingabe!H35) -> 1 | I35: =IF(Eingabe!I35="","",Eingabe!I35) -> 1 | J35: =IF(Eingabe!J35="","",Eingabe!J35) -> 1 | K35: =IF(Eingabe!K35="","",Eingabe!K35) -> 1 | L35: =IF(Eingabe!L35="","",Eingabe!L35) -> 1 | N35: + | P35: Prüfer vs. Standard | AG35: 1 | AH35: 1 | AJ35: 1 | AK35: 1 | AO35: 1 | AP35: 1 | AS35: 1 | AT35: 1 | AW35: 1 | AX35: 1 | BA35: 0 | BB35: 9 | BD35: 0 | BE35: 72 | BG35: 2 | BH35: 2 | BI35: 2 | BJ35: 6 | BK35: 2 | BL35: 2 | BM35: 2 | BN35: 6 | BO35: 2 | BP35: 2 | BQ35: 2 | BR35: 6 | BS35: 72 | BT35: 2 | BU35: 2 | BV35: 2 | BW35: 2 | BX35: 2 | BY35: 2 | BZ35: 2 | CA35: 2 | CB35: 2
B36: 29 | C36: =IF(Eingabe!C36="","",Eingabe!C36) -> 1 | D36: =IF(Eingabe!D36="","",Eingabe!D36) -> 1 | E36: =IF(Eingabe!E36="","",Eingabe!E36) -> 1 | F36: =IF(Eingabe!F36="","",Eingabe!F36) -> 1 | G36: =IF(Eingabe!G36="","",Eingabe!G36) -> 1 | H36: =IF(Eingabe!H36="","",Eingabe!H36) -> 1 | I36: =IF(Eingabe!I36="","",Eingabe!I36) -> 1 | J36: =IF(Eingabe!J36="","",Eingabe!J36) -> 1 | K36: =IF(Eingabe!K36="","",Eingabe!K36) -> 1 | L36: =IF(Eingabe!L36="","",Eingabe!L36) -> 1 | N36: + | P36: Source | S36: Einzelne Prüfer vs. Standard | Y36: Alle Prüfer vs. Standard | AG36: 1 | AH36: 1 | AJ36: 1 | AK36: 1 | AO36: 0 | AP36: 0 | AS36: 1 | AT36: 1 | AW36: 0 | AX36: 0 | BA36: 0 | BB36: 9 | BD36: 0 | BE36: 72 | BG36: 2 | BH36: 2 | BI36: 2 | BJ36: 6 | BK36: 2 | BL36: 2 | BM36: 2 | BN36: 6 | BO36: 2 | BP36: 2 | BQ36: 2 | BR36: 6 | BS36: 72 | BT36: 2 | BU36: 2 | BV36: 2 | BW36: 2 | BX36: 2 | BY36: 2 | BZ36: 2 | CA36: 2 | CB36: 2
B37: 30 | C37: =IF(Eingabe!C37="","",Eingabe!C37) -> 0 | D37: =IF(Eingabe!D37="","",Eingabe!D37) -> 0 | E37: =IF(Eingabe!E37="","",Eingabe!E37) -> 0 | F37: =IF(Eingabe!F37="","",Eingabe!F37) -> 0 | G37: =IF(Eingabe!G37="","",Eingabe!G37) -> 0 | H37: =IF(Eingabe!H37="","",Eingabe!H37) -> 1 | I37: =IF(Eingabe!I37="","",Eingabe!I37) -> 0 | J37: =IF(Eingabe!J37="","",Eingabe!J37) -> 0 | K37: =IF(Eingabe!K37="","",Eingabe!K37) -> 0 | L37: =IF(Eingabe!L37="","",Eingabe!L37) -> 0 | N37: x | S37: =S27 -> Prüfer A | U37: =U27 -> Prüfer B | W37: =W27 -> Prüfer C | AG37: 1 | AH37: 1 | AJ37: 1 | AK37: 1 | AO37: 1 | AP37: 1 | AS37: 1 | AT37: 1 | AW37: 1 | AX37: 1 | BA37: 8 | BB37: 1 | BD37: 56 | BE37: 0 | BG37: 2 | BH37: 2 | BI37: 2 | BJ37: 6 | BK37: 2 | BL37: 0 | BM37: 0 | BN37: 2 | BO37: 2 | BP37: 2 | BQ37: 2 | BR37: 6 | BS37: 56 | BT37: 2 | BU37: 2 | BV37: 2 | BW37: 2 | BX37: 2 | BY37: 0 | BZ37: 2 | CA37: 2 | CB37: 2
B38: 31 | C38: =IF(Eingabe!C38="","",Eingabe!C38) -> 1 | D38: =IF(Eingabe!D38="","",Eingabe!D38) -> 1 | E38: =IF(Eingabe!E38="","",Eingabe!E38) -> 1 | F38: =IF(Eingabe!F38="","",Eingabe!F38) -> 1 | G38: =IF(Eingabe!G38="","",Eingabe!G38) -> 1 | H38: =IF(Eingabe!H38="","",Eingabe!H38) -> 1 | I38: =IF(Eingabe!I38="","",Eingabe!I38) -> 1 | J38: =IF(Eingabe!J38="","",Eingabe!J38) -> 1 | K38: =IF(Eingabe!K38="","",Eingabe!K38) -> 1 | L38: =IF(Eingabe!L38="","",Eingabe!L38) -> 1 | N38: + | P38: Geprüft gesamt | S38: =S28 -> 50 | U38: =U28 -> 50 | W38: =W28 -> 50 | Y38: =S38 -> 50 | AG38: 1 | AH38: 1 | AJ38: 1 | AK38: 1 | AO38: 1 | AP38: 1 | AS38: 1 | AT38: 1 | AW38: 1 | AX38: 1 | BA38: 0 | BB38: 9 | BD38: 0 | BE38: 72 | BG38: 2 | BH38: 2 | BI38: 2 | BJ38: 6 | BK38: 2 | BL38: 2 | BM38: 2 | BN38: 6 | BO38: 2 | BP38: 2 | BQ38: 2 | BR38: 6 | BS38: 72 | BT38: 2 | BU38: 2 | BV38: 2 | BW38: 2 | BX38: 2 | BY38: 2 | BZ38: 2 | CA38: 2 | CB38: 2
B39: 32 | C39: =IF(Eingabe!C39="","",Eingabe!C39) -> 1 | D39: =IF(Eingabe!D39="","",Eingabe!D39) -> 1 | E39: =IF(Eingabe!E39="","",Eingabe!E39) -> 1 | F39: =IF(Eingabe!F39="","",Eingabe!F39) -> 1 | G39: =IF(Eingabe!G39="","",Eingabe!G39) -> 1 | H39: =IF(Eingabe!H39="","",Eingabe!H39) -> 1 | I39: =IF(Eingabe!I39="","",Eingabe!I39) -> 1 | J39: =IF(Eingabe!J39="","",Eingabe!J39) -> 1 | K39: =IF(Eingabe!K39="","",Eingabe!K39) -> 1 | L39: =IF(Eingabe!L39="","",Eingabe!L39) -> 1 | N39: + | P39: # Matched | S39: =IF(S38<>"",SUM(AH7:AH56),"") -> 42 | U39: =IF(U38<>"",SUM(AP7:AP56),"") -> 45 | W39: =IF(W38<>"",SUM(AT7:AT56),"") -> 40 | Y39: =IF(S38<>"",SUM(AX7:AX56),"") -> 39 | AG39: 1 | AH39: 1 | AJ39: 1 | AK39: 1 | AO39: =IF(F40<>"",IF(AND(F40=G40,F40=H40),1,0),"") -> 1 | AP39: =IF(F40<>"",IF(AND(F40=G40,G40=H40,H40=L40),1,0),"") -> 1 | AQ39: =IF(AO39<>"",IF(AO39<>AP39,L40,""),"") ->  | AS39: =IF(I40<>"",IF(AND(I40=J40,J40=K40),1,0),"") -> 1 | AT39: =IF(I40<>"",IF(AND(I40=J40,J40=K40,K40=L40),1,0),"") -> 1 | AU39: =IF(AS39<>"",IF(AS39<>AT39,L40,""),"") ->  | AW39: =IF(C40<>"",IF(OR(SUM(C40:K40)=COUNT(C40:K40),SUM(C40:K40)=0),1,0),"") -> 1 | AX39: 1 | BA39: 0 | BB39: 9 | BD39: 0 | BE39: 72 | BG39: 2 | BH39: 2 | BI39: 2 | BJ39: 6 | BK39: 2 | BL39: 2 | BM39: 2 | BN39: 6 | BO39: 2 | BP39: 2 | BQ39: 2 | BR39: 6 | BS39: 72 | BT39: 2 | BU39: 2 | BV39: 2 | BW39: 2 | BX39: 2 | BY39: 2 | BZ39: 2 | CA39: 2 | CB39: 2
B40: 33 | C40: =IF(Eingabe!C40="","",Eingabe!C40) -> 1 | D40: =IF(Eingabe!D40="","",Eingabe!D40) -> 1 | E40: =IF(Eingabe!E40="","",Eingabe!E40) -> 1 | F40: =IF(Eingabe!F40="","",Eingabe!F40) -> 1 | G40: =IF(Eingabe!G40="","",Eingabe!G40) -> 1 | H40: =IF(Eingabe!H40="","",Eingabe!H40) -> 1 | I40: =IF(Eingabe!I40="","",Eingabe!I40) -> 1 | J40: =IF(Eingabe!J40="","",Eingabe!J40) -> 1 | K40: =IF(Eingabe!K40="","",Eingabe!K40) -> 1 | L40: =IF(Eingabe!L40="","",Eingabe!L40) -> 1 | N40: + | P40: False Positive (*5) | S40: =IF(S38<>"",COUNTIF(AI7:AI56,"=1"),"") -> 0 | U40: =IF(U38<>"",COUNTIF(AQ7:AQ56,"=1"),"") -> 0 | W40: =IF(W38<>"",COUNTIF(AU7:AU56,"=1"),"") -> 0 | AG40: 0 | AH40: 0 | AJ40: 1 | AK40: 1 | AO40: 0 | AP40: 0 | AS40: 0 | AT40: 0 | AW40: 0 | AX40: =IF(AT40<>"",IF(AH40+AP40+AT40=3,1,0),"") -> 0 | BA40: =COUNTIF(C40:K40,0) -> 0 | BB40: =COUNTIF(C40:K40,1) -> 9 | BD40: 0 | BE40: 72 | BG40: =IF(C40="","",IF(C40=D40,2,0)) -> 2 | BH40: =IF(E40="","",IF(C40=E40,2,0)) -> 2 | BI40: =IF(D40="","",IF(D40=E40,2,0)) -> 2 | BJ40: 6 | BK40: =IF(G40="","",IF(F40=G40,2,0)) -> 2 | BL40: =IF(H40="","",IF(F40=H40,2,0)) -> 2 | BM40: =IF(H40="","",IF(G40=H40,2,0)) -> 2 | BN40: 6 | BO40: =IF(J40="","",IF(I40=J40,2,0)) -> 2 | BP40: =IF(K40="","",IF(I40=K40,2,0)) -> 2 | BQ40: =IF(K40="","",IF(J40=K40,2,0)) -> 2 | BR40: 6 | BS40: 72 | BT40: =IF(C40="","",IF(C40=$L40,2,0)) -> 2 | BU40: =IF(D40="","",IF(D40=$L40,2,0)) -> 2 | BV40: =IF(E40="","",IF(E40=$L40,2,0)) -> 2 | BW40: =IF(F40="","",IF(F40=$L40,2,0)) -> 2 | BX40: =IF(G40="","",IF(G40=$L40,2,0)) -> 2 | BY40: =IF(H40="","",IF(H40=$L40,2,0)) -> 2 | BZ40: =IF(I40="","",IF(I40=$L40,2,0)) -> 2 | CA40: =IF(J40="","",IF(J40=$L40,2,0)) -> 2 | CB40: =IF(K40="","",IF(K40=$L40,2,0)) -> 2
B41: 34 | C41: =IF(Eingabe!C41="","",Eingabe!C41) -> 0 | D41: =IF(Eingabe!D41="","",Eingabe!D41) -> 0 | E41: =IF(Eingabe!E41="","",Eingabe!E41) -> 1 | F41: =IF(Eingabe!F41="","",Eingabe!F41) -> 0 | G41: =IF(Eingabe!G41="","",Eingabe!G41) -> 0 | H41: =IF(Eingabe!H41="","",Eingabe!H41) -> 1 | I41: =IF(Eingabe!I41="","",Eingabe!I41) -> 0 | J41: =IF(Eingabe!J41="","",Eingabe!J41) -> 1 | K41: =IF(Eingabe!K41="","",Eingabe!K41) -> 1 | L41: =IF(Eingabe!L41="","",Eingabe!L41) -> 0 | N41: x | P41: False Negative (*6) | S41: =IF(S38<>"",COUNTIF(AI7:AI56,"=0"),"") -> 0 | U41: =IF(U38<>"",COUNTIF(AQ7:AQ56,"=0"),"") -> 0 | W41: =IF(W38<>"",COUNTIF(AU7:AU56,"=0"),"") -> 0 | AG41: 1 | AH41: 1 | AJ41: 1 | AK41: 1 | AO41: 1 | AP41: 1 | AS41: 1 | AT41: 1 | AW41: 1 | AX41: 1 | BA41: 5 | BB41: 4 | BD41: 20 | BE41: 12 | BG41: 2 | BH41: 0 | BI41: 0 | BJ41: 2 | BK41: 2 | BL41: 0 | BM41: 0 | BN41: 2 | BO41: 0 | BP41: 0 | BQ41: 2 | BR41: 2 | BS41: 32 | BT41: 2 | BU41: 2 | BV41: 0 | BW41: 2 | BX41: 2 | BY41: 0 | BZ41: 2 | CA41: 0 | CB41: 0
B42: 35 | C42: =IF(Eingabe!C42="","",Eingabe!C42) -> 1 | D42: =IF(Eingabe!D42="","",Eingabe!D42) -> 1 | E42: =IF(Eingabe!E42="","",Eingabe!E42) -> 1 | F42: =IF(Eingabe!F42="","",Eingabe!F42) -> 1 | G42: =IF(Eingabe!G42="","",Eingabe!G42) -> 1 | H42: =IF(Eingabe!H42="","",Eingabe!H42) -> 1 | I42: =IF(Eingabe!I42="","",Eingabe!I42) -> 1 | J42: =IF(Eingabe!J42="","",Eingabe!J42) -> 1 | K42: =IF(Eingabe!K42="","",Eingabe!K42) -> 1 | L42: =IF(Eingabe!L42="","",Eingabe!L42) -> 1 | N42: + | P42: Mixed | S42: =IF(S38<>"",S38-S39-S40-S41,"") -> 8 | U42: =IF(U38<>"",U38-U39-U40-U41,"") -> 5 | W42: =IF(W38<>"",W38-W39-W40-W41,"") -> 10 | AG42: 0 | AH42: 0 | AJ42: 1 | AK42: 1 | AO42: 1 | AP42: 1 | AS42: 0 | AT42: 0 | AW42: 0 | AX42: 0 | BA42: 0 | BB42: 9 | BD42: 0 | BE42: 72 | BG42: 2 | BH42: 2 | BI42: 2 | BJ42: 6 | BK42: 2 | BL42: 2 | BM42: 2 | BN42: 6 | BO42: 2 | BP42: 2 | BQ42: 2 | BR42: 6 | BS42: 72 | BT42: 2 | BU42: 2 | BV42: 2 | BW42: 2 | BX42: 2 | BY42: 2 | BZ42: 2 | CA42: 2 | CB42: 2
B43: 36 | C43: =IF(Eingabe!C43="","",Eingabe!C43) -> 1 | D43: =IF(Eingabe!D43="","",Eingabe!D43) -> 1 | E43: =IF(Eingabe!E43="","",Eingabe!E43) -> 0 | F43: =IF(Eingabe!F43="","",Eingabe!F43) -> 1 | G43: =IF(Eingabe!G43="","",Eingabe!G43) -> 1 | H43: =IF(Eingabe!H43="","",Eingabe!H43) -> 1 | I43: =IF(Eingabe!I43="","",Eingabe!I43) -> 1 | J43: =IF(Eingabe!J43="","",Eingabe!J43) -> 0 | K43: =IF(Eingabe!K43="","",Eingabe!K43) -> 1 | L43: =IF(Eingabe!L43="","",Eingabe!L43) -> 1 | N43: x | P43: 95% upper CI (*7) | S43: =IF(S39<>"",IF(S38=S39,1,(2*(S39+1)*FINV(0.025,2*(S39+1),2*(S38-S39)))/(2*(S38-S39)+2*(S39+1)*FINV(0.025,2*(S39+1),2*(S38-S39)))),"") -> 0.9282992328 | U43: =IF(U39<>"",IF(U38=U39,1,(2*(U39+1)*FINV(0.025,2*(U39+1),2*(U38-U39)))/(2*(U38-U39)+2*(U39+1)*FINV(0.025,2*(U39+1),2*(U38-U39)))),"") -> 0.9667249064 | W43: =IF(W39<>"",IF(W38=W39,1,(2*(W39+1)*FINV(0.025,2*(W39+1),2*(W38-W39)))/(2*(W38-W39)+2*(W39+1)*FINV(0.025,2*(W39+1),2*(W38-W39)))),"") -> 0.8996977625 | Y43: =IF(Y39<>"",IF(Y38=Y39,1,(2*(Y39+1)*FINV(0.025,2*(Y39+1),2*(Y38-Y39)))/(2*(Y38-Y39)+2*(Y39+1)*FINV(0.025,2*(Y39+1),2*(Y38-Y39)))),"") -> 0.884734174 | AG43: 1 | AH43: 1 | AJ43: 1 | AK43: 1 | AO43: 1 | AP43: 1 | AS43: 1 | AT43: 1 | AW43: 1 | AX43: 1 | BA43: 2 | BB43: 7 | BD43: 2 | BE43: 42 | BG43: 2 | BH43: 0 | BI43: 0 | BJ43: 2 | BK43: 2 | BL43: 2 | BM43: 2 | BN43: 6 | BO43: 0 | BP43: 2 | BQ43: 0 | BR43: 2 | BS43: 44 | BT43: 2 | BU43: 2 | BV43: 0 | BW43: 2 | BX43: 2 | BY43: 2 | BZ43: 2 | CA43: 0 | CB43: 2
B44: 37 | C44: =IF(Eingabe!C44="","",Eingabe!C44) -> 0 | D44: =IF(Eingabe!D44="","",Eingabe!D44) -> 0 | E44: =IF(Eingabe!E44="","",Eingabe!E44) -> 0 | F44: =IF(Eingabe!F44="","",Eingabe!F44) -> 0 | G44: =IF(Eingabe!G44="","",Eingabe!G44) -> 0 | H44: =IF(Eingabe!H44="","",Eingabe!H44) -> 0 | I44: =IF(Eingabe!I44="","",Eingabe!I44) -> 0 | J44: =IF(Eingabe!J44="","",Eingabe!J44) -> 0 | K44: =IF(Eingabe!K44="","",Eingabe!K44) -> 0 | L44: =IF(Eingabe!L44="","",Eingabe!L44) -> 0 | N44: - | P44: Ergebnis | S44: =IF(S38<>"",S39/S38,"") -> 0.84 | U44: =IF(U38<>"",U39/U38,"") -> 0.9 | W44: =IF(W38<>"",W39/W38,"") -> 0.8 | Y44: =IF(Y38<>"",Y39/Y38,"") -> 0.78 | AG44: 1 | AH44: 1 | AJ44: 1 | AK44: 1 | AO44: 1 | AP44: 1 | AS44: 1 | AT44: 1 | AW44: 1 | AX44: 1 | BA44: 9 | BB44: 0 | BD44: 72 | BE44: 0 | BG44: 2 | BH44: 2 | BI44: 2 | BJ44: 6 | BK44: 2 | BL44: 2 | BM44: 2 | BN44: 6 | BO44: 2 | BP44: 2 | BQ44: 2 | BR44: 6 | BS44: 72 | BT44: 2 | BU44: 2 | BV44: 2 | BW44: 2 | BX44: 2 | BY44: 2 | BZ44: 2 | CA44: 2 | CB44: 2
B45: 38 | C45: =IF(Eingabe!C45="","",Eingabe!C45) -> 1 | D45: =IF(Eingabe!D45="","",Eingabe!D45) -> 1 | E45: =IF(Eingabe!E45="","",Eingabe!E45) -> 1 | F45: =IF(Eingabe!F45="","",Eingabe!F45) -> 1 | G45: =IF(Eingabe!G45="","",Eingabe!G45) -> 1 | H45: =IF(Eingabe!H45="","",Eingabe!H45) -> 1 | I45: =IF(Eingabe!I45="","",Eingabe!I45) -> 1 | J45: =IF(Eingabe!J45="","",Eingabe!J45) -> 1 | K45: =IF(Eingabe!K45="","",Eingabe!K45) -> 1 | L45: =IF(Eingabe!L45="","",Eingabe!L45) -> 1 | N45: + | P45: 95% lower CI (*7) | S45: =IF(S39<>"",IF(S39=0,0,(2*S39*FINV(0.975,2*S39,2*(S38-S39+1)))/(2*(S38-S39+1)+2*S39*FINV(0.975,2*S39,2*(S38-S39+1)))),"") -> 0.7088736934 | U45: =IF(U39<>"",IF(S39=0,0,(2*U39*FINV(0.975,2*U39,2*(U38-U39+1)))/(2*(U38-U39+1)+2*U39*FINV(0.975,2*U39,2*(U38-U39+1)))),"") -> 0.7818646336 | W45: =IF(W39<>"",IF(S39=0,0,(2*W39*FINV(0.975,2*W39,2*(W38-W39+1)))/(2*(W38-W39+1)+2*W39*FINV(0.975,2*W39,2*(W38-W39+1)))),"") -> 0.6628168916 | Y45: =IF(Y39<>"",IF(S39=0,0,(2*Y39*FINV(0.975,2*Y39,2*(Y38-Y39+1)))/(2*(Y38-Y39+1)+2*Y39*FINV(0.975,2*Y39,2*(Y38-Y39+1)))),"") -> 0.6403881114 | AG45: 1 | AH45: 1 | AJ45: 1 | AK45: 1 | AO45: 1 | AP45: 1 | AS45: 1 | AT45: 1 | AW45: 1 | AX45: 1 | BA45: 0 | BB45: 9 | BD45: 0 | BE45: 72 | BG45: 2 | BH45: 2 | BI45: 2 | BJ45: 6 | BK45: 2 | BL45: 2 | BM45: 2 | BN45: 6 | BO45: 2 | BP45: 2 | BQ45: 2 | BR45: 6 | BS45: 72 | BT45: 2 | BU45: 2 | BV45: 2 | BW45: 2 | BX45: 2 | BY45: 2 | BZ45: 2 | CA45: 2 | CB45: 2
B46: 39 | C46: =IF(Eingabe!C46="","",Eingabe!C46) -> 0 | D46: =IF(Eingabe!D46="","",Eingabe!D46) -> 0 | E46: =IF(Eingabe!E46="","",Eingabe!E46) -> 0 | F46: =IF(Eingabe!F46="","",Eingabe!F46) -> 0 | G46: =IF(Eingabe!G46="","",Eingabe!G46) -> 0 | H46: =IF(Eingabe!H46="","",Eingabe!H46) -> 0 | I46: =IF(Eingabe!I46="","",Eingabe!I46) -> 0 | J46: =IF(Eingabe!J46="","",Eingabe!J46) -> 0 | K46: =IF(Eingabe!K46="","",Eingabe!K46) -> 0 | L46: =IF(Eingabe!L46="","",Eingabe!L46) -> 0 | N46: - | P46: Fleiss Kappa | S46: =BT74 -> 0.8802361854 | U46: =BW74 -> 0.922611927 | W46: =BZ74 -> 0.774703244 | Y46: =BT75 -> 0.8591837855 | AG46: 1 | AH46: 1 | AJ46: 1 | AK46: 1 | AO46: 1 | AP46: 1 | AS46: 1 | AT46: 1 | AW46: 1 | AX46: 1 | BA46: 9 | BB46: 0 | BD46: 72 | BE46: 0 | BG46: 2 | BH46: 2 | BI46: 2 | BJ46: 6 | BK46: 2 | BL46: 2 | BM46: 2 | BN46: 6 | BO46: 2 | BP46: 2 | BQ46: 2 | BR46: 6 | BS46: 72 | BT46: 2 | BU46: 2 | BV46: 2 | BW46: 2 | BX46: 2 | BY46: 2 | BZ46: 2 | CA46: 2 | CB46: 2
B47: 40 | C47: =IF(Eingabe!C47="","",Eingabe!C47) -> 1 | D47: =IF(Eingabe!D47="","",Eingabe!D47) -> 1 | E47: =IF(Eingabe!E47="","",Eingabe!E47) -> 1 | F47: =IF(Eingabe!F47="","",Eingabe!F47) -> 1 | G47: =IF(Eingabe!G47="","",Eingabe!G47) -> 1 | H47: =IF(Eingabe!H47="","",Eingabe!H47) -> 1 | I47: =IF(Eingabe!I47="","",Eingabe!I47) -> 1 | J47: =IF(Eingabe!J47="","",Eingabe!J47) -> 1 | K47: =IF(Eingabe!K47="","",Eingabe!K47) -> 1 | L47: =IF(Eingabe!L47="","",Eingabe!L47) -> 1 | N47: + | AG47: 1 | AH47: 1 | AO47: 1 | AP47: 1 | AS47: 1 | AT47: 1 | AW47: 1 | AX47: 1 | BA47: 0 | BB47: 9 | BD47: 0 | BE47: 72 | BG47: 2 | BH47: 2 | BI47: 2 | BJ47: 6 | BK47: 2 | BL47: 2 | BM47: 2 | BN47: 6 | BO47: 2 | BP47: 2 | BQ47: 2 | BR47: 6 | BS47: 72 | BT47: 2 | BU47: 2 | BV47: 2 | BW47: 2 | BX47: 2 | BY47: 2 | BZ47: 2 | CA47: 2 | CB47: 2
B48: =B47+1 -> 41 | C48: =IF(Eingabe!C48="","",Eingabe!C48) -> 1 | D48: =IF(Eingabe!D48="","",Eingabe!D48) -> 1 | E48: =IF(Eingabe!E48="","",Eingabe!E48) -> 1 | F48: =IF(Eingabe!F48="","",Eingabe!F48) -> 1 | G48: =IF(Eingabe!G48="","",Eingabe!G48) -> 1 | H48: =IF(Eingabe!H48="","",Eingabe!H48) -> 1 | I48: =IF(Eingabe!I48="","",Eingabe!I48) -> 1 | J48: =IF(Eingabe!J48="","",Eingabe!J48) -> 1 | K48: =IF(Eingabe!K48="","",Eingabe!K48) -> 1 | L48: =IF(Eingabe!L48="","",Eingabe!L48) -> 1 | N48: + | P48: Anmerkungen: | AG48: 1 | AH48: 1 | AO48: 1 | AP48: 1 | AS48: 1 | AT48: 1 | AW48: 1 | AX48: 1 | BA48: 0 | BB48: 9 | BD48: 0 | BE48: 72 | BG48: 2 | BH48: 2 | BI48: 2 | BJ48: 6 | BK48: 2 | BL48: 2 | BM48: 2 | BN48: 6 | BO48: 2 | BP48: 2 | BQ48: 2 | BR48: 6 | BS48: 72 | BT48: 2 | BU48: 2 | BV48: 2 | BW48: 2 | BX48: 2 | BY48: 2 | BZ48: 2 | CA48: 2 | CB48: 2
B49: =B48+1 -> 42 | C49: =IF(Eingabe!C49="","",Eingabe!C49) -> 0 | D49: =IF(Eingabe!D49="","",Eingabe!D49) -> 0 | E49: =IF(Eingabe!E49="","",Eingabe!E49) -> 0 | F49: =IF(Eingabe!F49="","",Eingabe!F49) -> 0 | G49: =IF(Eingabe!G49="","",Eingabe!G49) -> 0 | H49: =IF(Eingabe!H49="","",Eingabe!H49) -> 0 | I49: =IF(Eingabe!I49="","",Eingabe!I49) -> 0 | J49: =IF(Eingabe!J49="","",Eingabe!J49) -> 0 | K49: =IF(Eingabe!K49="","",Eingabe!K49) -> 0 | L49: =IF(Eingabe!L49="","",Eingabe!L49) -> 0 | N49: - | AG49: 0 | AH49: 0 | AO49: 1 | AP49: 1 | AS49: 0 | AT49: 0 | AW49: 0 | AX49: 0 | BA49: 9 | BB49: 0 | BD49: 72 | BE49: 0 | BG49: 2 | BH49: 2 | BI49: 2 | BJ49: 6 | BK49: 2 | BL49: 2 | BM49: 2 | BN49: 6 | BO49: 2 | BP49: 2 | BQ49: 2 | BR49: 6 | BS49: 72 | BT49: 2 | BU49: 2 | BV49: 2 | BW49: 2 | BX49: 2 | BY49: 2 | BZ49: 2 | CA49: 2 | CB49: 2
B50: 43 | C50: =IF(Eingabe!C50="","",Eingabe!C50) -> 1 | D50: =IF(Eingabe!D50="","",Eingabe!D50) -> 0 | E50: =IF(Eingabe!E50="","",Eingabe!E50) -> 1 | F50: =IF(Eingabe!F50="","",Eingabe!F50) -> 1 | G50: =IF(Eingabe!G50="","",Eingabe!G50) -> 1 | H50: =IF(Eingabe!H50="","",Eingabe!H50) -> 1 | I50: =IF(Eingabe!I50="","",Eingabe!I50) -> 1 | J50: =IF(Eingabe!J50="","",Eingabe!J50) -> 1 | K50: =IF(Eingabe!K50="","",Eingabe!K50) -> 0 | L50: =IF(Eingabe!L50="","",Eingabe!L50) -> 1 | N50: x | AG50: 1 | AH50: 1 | AO50: 1 | AP50: 1 | AS50: 1 | AT50: 1 | AW50: 1 | AX50: 1 | BA50: 2 | BB50: 7 | BD50: 2 | BE50: 42 | BG50: 0 | BH50: 2 | BI50: 0 | BJ50: 2 | BK50: 2 | BL50: 2 | BM50: 2 | BN50: 6 | BO50: 2 | BP50: 0 | BQ50: 0 | BR50: 2 | BS50: 44 | BT50: 2 | BU50: 0 | BV50: 2 | BW50: 2 | BX50: 2 | BY50: 2 | BZ50: 2 | CA50: 2 | CB50: 0
B51: 44 | C51: =IF(Eingabe!C51="","",Eingabe!C51) -> 1 | D51: =IF(Eingabe!D51="","",Eingabe!D51) -> 1 | E51: =IF(Eingabe!E51="","",Eingabe!E51) -> 1 | F51: =IF(Eingabe!F51="","",Eingabe!F51) -> 1 | G51: =IF(Eingabe!G51="","",Eingabe!G51) -> 1 | H51: =IF(Eingabe!H51="","",Eingabe!H51) -> 1 | I51: =IF(Eingabe!I51="","",Eingabe!I51) -> 1 | J51: =IF(Eingabe!J51="","",Eingabe!J51) -> 1 | K51: =IF(Eingabe!K51="","",Eingabe!K51) -> 1 | L51: =IF(Eingabe!L51="","",Eingabe!L51) -> 1 | N51: + | AG51: 1 | AH51: 1 | AO51: 1 | AP51: 1 | AS51: 1 | AT51: 1 | AW51: 1 | AX51: 1 | BA51: 0 | BB51: 9 | BD51: 0 | BE51: 72 | BG51: 2 | BH51: 2 | BI51: 2 | BJ51: 6 | BK51: 2 | BL51: 2 | BM51: 2 | BN51: 6 | BO51: 2 | BP51: 2 | BQ51: 2 | BR51: 6 | BS51: 72 | BT51: 2 | BU51: 2 | BV51: 2 | BW51: 2 | BX51: 2 | BY51: 2 | BZ51: 2 | CA51: 2 | CB51: 2
B52: 45 | C52: =IF(Eingabe!C52="","",Eingabe!C52) -> 0 | D52: =IF(Eingabe!D52="","",Eingabe!D52) -> 0 | E52: =IF(Eingabe!E52="","",Eingabe!E52) -> 0 | F52: =IF(Eingabe!F52="","",Eingabe!F52) -> 0 | G52: =IF(Eingabe!G52="","",Eingabe!G52) -> 0 | H52: =IF(Eingabe!H52="","",Eingabe!H52) -> 0 | I52: =IF(Eingabe!I52="","",Eingabe!I52) -> 0 | J52: =IF(Eingabe!J52="","",Eingabe!J52) -> 0 | K52: =IF(Eingabe!K52="","",Eingabe!K52) -> 0 | L52: =IF(Eingabe!L52="","",Eingabe!L52) -> 0 | N52: - | AG52: 1 | AH52: 1 | AO52: 1 | AP52: 1 | AS52: 1 | AT52: 1 | AW52: 1 | AX52: 1 | BA52: 9 | BB52: 0 | BD52: 72 | BE52: 0 | BG52: 2 | BH52: 2 | BI52: 2 | BJ52: 6 | BK52: 2 | BL52: 2 | BM52: 2 | BN52: 6 | BO52: 2 | BP52: 2 | BQ52: 2 | BR52: 6 | BS52: 72 | BT52: 2 | BU52: 2 | BV52: 2 | BW52: 2 | BX52: 2 | BY52: 2 | BZ52: 2 | CA52: 2 | CB52: 2
B53: 46 | C53: =IF(Eingabe!C53="","",Eingabe!C53) -> 1 | D53: =IF(Eingabe!D53="","",Eingabe!D53) -> 1 | E53: =IF(Eingabe!E53="","",Eingabe!E53) -> 1 | F53: =IF(Eingabe!F53="","",Eingabe!F53) -> 1 | G53: =IF(Eingabe!G53="","",Eingabe!G53) -> 1 | H53: =IF(Eingabe!H53="","",Eingabe!H53) -> 1 | I53: =IF(Eingabe!I53="","",Eingabe!I53) -> 1 | J53: =IF(Eingabe!J53="","",Eingabe!J53) -> 1 | K53: =IF(Eingabe!K53="","",Eingabe!K53) -> 1 | L53: =IF(Eingabe!L53="","",Eingabe!L53) -> 1 | N53: + | AG53: 1 | AH53: 1 | AO53: 1 | AP53: 1 | AS53: 1 | AT53: 1 | AW53: 1 | AX53: 1 | BA53: 0 | BB53: 9 | BD53: 0 | BE53: 72 | BG53: 2 | BH53: 2 | BI53: 2 | BJ53: 6 | BK53: 2 | BL53: 2 | BM53: 2 | BN53: 6 | BO53: 2 | BP53: 2 | BQ53: 2 | BR53: 6 | BS53: 72 | BT53: 2 | BU53: 2 | BV53: 2 | BW53: 2 | BX53: 2 | BY53: 2 | BZ53: 2 | CA53: 2 | CB53: 2
B54: 47 | C54: =IF(Eingabe!C54="","",Eingabe!C54) -> 1 | D54: =IF(Eingabe!D54="","",Eingabe!D54) -> 1 | E54: =IF(Eingabe!E54="","",Eingabe!E54) -> 1 | F54: =IF(Eingabe!F54="","",Eingabe!F54) -> 1 | G54: =IF(Eingabe!G54="","",Eingabe!G54) -> 1 | H54: =IF(Eingabe!H54="","",Eingabe!H54) -> 1 | I54: =IF(Eingabe!I54="","",Eingabe!I54) -> 1 | J54: =IF(Eingabe!J54="","",Eingabe!J54) -> 1 | K54: =IF(Eingabe!K54="","",Eingabe!K54) -> 1 | L54: =IF(Eingabe!L54="","",Eingabe!L54) -> 1 | N54: + | AG54: 1 | AH54: 1 | AO54: 1 | AP54: 1 | AS54: 1 | AT54: 1 | AW54: 1 | AX54: 1 | BA54: 0 | BB54: 9 | BD54: 0 | BE54: 72 | BG54: 2 | BH54: 2 | BI54: 2 | BJ54: 6 | BK54: 2 | BL54: 2 | BM54: 2 | BN54: 6 | BO54: 2 | BP54: 2 | BQ54: 2 | BR54: 6 | BS54: 72 | BT54: 2 | BU54: 2 | BV54: 2 | BW54: 2 | BX54: 2 | BY54: 2 | BZ54: 2 | CA54: 2 | CB54: 2
B55: 48 | C55: =IF(Eingabe!C55="","",Eingabe!C55) -> 0 | D55: =IF(Eingabe!D55="","",Eingabe!D55) -> 0 | E55: =IF(Eingabe!E55="","",Eingabe!E55) -> 0 | F55: =IF(Eingabe!F55="","",Eingabe!F55) -> 0 | G55: =IF(Eingabe!G55="","",Eingabe!G55) -> 0 | H55: =IF(Eingabe!H55="","",Eingabe!H55) -> 0 | I55: =IF(Eingabe!I55="","",Eingabe!I55) -> 0 | J55: =IF(Eingabe!J55="","",Eingabe!J55) -> 0 | K55: =IF(Eingabe!K55="","",Eingabe!K55) -> 0 | L55: =IF(Eingabe!L55="","",Eingabe!L55) -> 0 | N55: - | AG55: 1 | AH55: 1 | AO55: 1 | AP55: 1 | AS55: 1 | AT55: 1 | AW55: 1 | AX55: 1 | BA55: 9 | BB55: 0 | BD55: 72 | BE55: 0 | BG55: 2 | BH55: 2 | BI55: 2 | BJ55: 6 | BK55: 2 | BL55: 2 | BM55: 2 | BN55: 6 | BO55: 2 | BP55: 2 | BQ55: 2 | BR55: 6 | BS55: 72 | BT55: 2 | BU55: 2 | BV55: 2 | BW55: 2 | BX55: 2 | BY55: 2 | BZ55: 2 | CA55: 2 | CB55: 2
B56: 49 | C56: =IF(Eingabe!C56="","",Eingabe!C56) -> 1 | D56: =IF(Eingabe!D56="","",Eingabe!D56) -> 1 | E56: =IF(Eingabe!E56="","",Eingabe!E56) -> 1 | F56: =IF(Eingabe!F56="","",Eingabe!F56) -> 1 | G56: =IF(Eingabe!G56="","",Eingabe!G56) -> 1 | H56: =IF(Eingabe!H56="","",Eingabe!H56) -> 1 | I56: =IF(Eingabe!I56="","",Eingabe!I56) -> 1 | J56: =IF(Eingabe!J56="","",Eingabe!J56) -> 1 | K56: =IF(Eingabe!K56="","",Eingabe!K56) -> 1 | L56: =IF(Eingabe!L56="","",Eingabe!L56) -> 1 | N56: + | AG56: 1 | AH56: 1 | AO56: 1 | AP56: 1 | AS56: 1 | AT56: 1 | AW56: 1 | AX56: 1 | BA56: 0 | BB56: 9 | BD56: 0 | BE56: 72 | BG56: 2 | BH56: 2 | BI56: 2 | BJ56: 6 | BK56: 2 | BL56: 2 | BM56: 2 | BN56: 6 | BO56: 2 | BP56: 2 | BQ56: 2 | BR56: 6 | BS56: 72 | BT56: 2 | BU56: 2 | BV56: 2 | BW56: 2 | BX56: 2 | BY56: 2 | BZ56: 2 | CA56: 2 | CB56: 2
B57: 50 | C57: =IF(Eingabe!C57="","",Eingabe!C57) -> 0 | D57: =IF(Eingabe!D57="","",Eingabe!D57) -> 0 | E57: =IF(Eingabe!E57="","",Eingabe!E57) -> 0 | F57: =IF(Eingabe!F57="","",Eingabe!F57) -> 0 | G57: =IF(Eingabe!G57="","",Eingabe!G57) -> 0 | H57: =IF(Eingabe!H57="","",Eingabe!H57) -> 0 | I57: =IF(Eingabe!I57="","",Eingabe!I57) -> 0 | J57: =IF(Eingabe!J57="","",Eingabe!J57) -> 0 | K57: =IF(Eingabe!K57="","",Eingabe!K57) -> 0 | L57: =IF(Eingabe!L57="","",Eingabe!L57) -> 0 | N57: - | BA57: 9 | BB57: 0 | BD57: 72 | BE57: 0 | BG57: 2 | BH57: 2 | BI57: 2 | BJ57: 6 | BK57: 2 | BL57: 2 | BM57: 2 | BN57: 6 | BO57: 2 | BP57: 2 | BQ57: 2 | BR57: 6 | BS57: 72 | BT57: 2 | BU57: 2 | BV57: 2 | BW57: 2 | BX57: 2 | BY57: 2 | BZ57: 2 | CA57: 2 | CB57: 2
AZ58: Summe | BA58: =SUM(BA8:BA57) -> 148 | BB58: =SUM(BB8:BB57) -> 302 | BD58: =SUM(BD8:BD57) -> 1020 | BE58: =SUM(BE8:BE57) -> 2252 | BJ58: =SUM(BJ8:BJ57) -> 268 | BN58: =SUM(BN8:BN57) -> 280 | BR58: =SUM(BR8:BR57) -> 260 | BS58: =SUM(BS8:BS57) -> 3272 | BT58: =SUM(BT8:BT57) -> 100 | BU58: 96 | BV58: 88 | BW58: 100 | BX58: 96 | BY58: 94 | BZ58: 96 | CA58: 86 | CB58: 88
BG59: =COUNT(BG8:BG57)*2 -> 100 | BH59: =COUNT(BH8:BH57)*2 -> 100 | BI59: =COUNT(BI8:BI57)*2 -> 100 | BJ59: =SUM(BG59:BI59) -> 300 | BK59: =COUNT(BK8:BK57)*2 -> 100 | BL59: 100 | BM59: 100 | BN59: =SUM(BK59:BM59) -> 300 | BO59: 100 | BP59: 100 | BQ59: 100 | BR59: =SUM(BO59:BQ59) -> 300 | BS59: =BD68 -> 3600 | BT59: =COUNT(BT8:BT57)*2 -> 100 | BU59: =COUNT(BU8:BU57)*2 -> 100 | BV59: 100 | BW59: 100 | BX59: 100 | BY59: 100 | BZ59: 100 | CA59: 100 | CB59: 100
AG60: A | AI60: B | AO60: C | BA60: =BA58+BB58 -> 450 | BD60: =BD58+BE58 -> 3272 | BJ60: =BJ58/BJ59 -> 0.8933333333 | BN60: =BN58/BN59 -> 0.9333333333 | BR60: =BR58/BR59 -> 0.8666666667 | BS60: =BS58/BS59 -> 0.9088888889 | BT60: =BT58/BT59 -> 1 | BU60: 0.96 | BV60: =IF(BV59=0,"",BV58/BV59) -> 0.88 | BW60: 1 | BX60: 0.96 | BY60: =IF(BY59=0,"",BY58/BY59) -> 0.94 | BZ60: 0.96 | CA60: 0.86 | CB60: =IF(CB59=0,"",CB58/CB59) -> 0.88
AG61: =IF(S28<>"",S30-S31,"") -> 0.08829923282 | AI61: =IF(U28<>"",U30-U31,"") -> 0.06672490641 | AO61: =IF(W28<>"",W30-W31,"") -> 0.09969776253 | BJ61: =COUNTIF($C$8:$E$57,0) -> 50 | BN61: =COUNTIF($F$8:$H$57,0) -> 47 | BR61: =COUNTIF($I$8:$K$57,0) -> 51 | BS61: =COUNTIF($C$8:$K$57,0) -> 148 | BT61: =COUNTIF(C$8:C$57,0)+COUNTIF($L$8:$L$57,0) -> 32 | BU61: 32 | BV61: 34 | BW61: 32 | BX61: 32 | BY61: 31 | BZ61: 32 | CA61: 33 | CB61: 34
AG62: =IF(S28<>"",S31-S32,"") -> 0.1311263066 | AI62: =IF(U28<>"",U31-U32,"") -> 0.1181353664 | AO62: =IF(W28<>"",W31-W32,"") -> 0.1371831084 | BA62: =BA58/$BA$60 -> 0.3288888889 | BB62: =BB58/$BA$60 -> 0.6711111111 | BD62: =BA8+BB8 -> 9 | BJ62: =COUNTIF($C$8:$E$57,1) -> 100 | BN62: =COUNTIF($F$8:$H$57,1) -> 103 | BR62: =COUNTIF($I$8:$K$57,1) -> 99 | BS62: =COUNTIF($C$8:$K$57,1) -> 302 | BT62: =COUNTIF(C$8:C$57,1)+COUNTIF($L$8:$L$57,1) -> 68 | BU62: 68 | BV62: 66 | BW62: 68 | BX62: 68 | BY62: 69 | BZ62: 68 | CA62: 67 | CB62: 66
AG63: =IF(S28<>"",S43-S44,"") -> 0.08829923282 | AI63: =IF(U28<>"",U43-U44,"") -> 0.06672490641 | AO63: =IF(W28<>"",W43-W44,"") -> 0.09969776253
AG64: =IF(S28<>"",S44-S45,"") -> 0.1311263066 | AI64: =IF(U28<>"",U44-U45,"") -> 0.1181353664 | AO64: =IF(W28<>"",W44-W45,"") -> 0.1371831084
BJ65: =BJ62+BJ61 -> 150 | BN65: =BN62+BN61 -> 150 | BR65: =BR62+BR61 -> 150 | BS65: =BS62+BS61 -> 450 | BT65: =BT62+BT61 -> 100 | BU65: =BU62+BU61 -> 100 | BV65: 100 | BW65: 100 | BX65: 100 | BY65: 100 | BZ65: 100 | CA65: 100 | CB65: 100
BA66: =BA62*BA62 -> 0.1081679012 | BB66: =BB62*BB62 -> 0.4503901235 | BD66: =BD62*(BD62-1) -> 72 | BJ66: =BJ61/BJ65 -> 0.3333333333 | BN66: =BN61/BN65 -> 0.3133333333 | BR66: =BR61/BR65 -> 0.34 | BS66: =BS61/BS65 -> 0.3288888889 | BT66: =BT61/BT65 -> 0.32 | BU66: 0.32 | BV66: 0.34 | BW66: 0.32 | BX66: 0.32 | BY66: 0.31 | BZ66: 0.32 | CA66: 0.33 | CB66: 0.34
BJ67: =BJ62/BJ65 -> 0.6666666667 | BN67: =BN62/BN65 -> 0.6866666667 | BR67: =BR62/BR65 -> 0.66 | BS67: =BS62/BS65 -> 0.6711111111 | BT67: =BT62/BT65 -> 0.68 | BU67: 0.68 | BV67: 0.66 | BW67: 0.68 | BX67: 0.68 | BY67: 0.69 | BZ67: 0.68 | CA67: 0.67 | CB67: 0.66
BD68: =BD66*S28 -> 3600 | BJ68: =BJ66*BJ66 -> 0.1111111111 | BN68: =BN66*BN66 -> 0.09817777778 | BR68: =BR66*BR66 -> 0.1156 | BS68: =BS66*BS66 -> 0.1081679012 | BT68: =BT66*BT66 -> 0.1024 | BU68: 0.1024 | BV68: 0.1156 | BW68: 0.1024 | BX68: 0.1024 | BY68: 0.0961 | BZ68: 0.1024 | CA68: 0.1089 | CB68: 0.1156
BJ69: =BJ67*BJ67 -> 0.4444444444 | BN69: =BN67*BN67 -> 0.4715111111 | BR69: =BR67*BR67 -> 0.4356 | BS69: =BS67*BS67 -> 0.4503901235 | BT69: 0.4624 | BU69: 0.4624 | BV69: 0.4356 | BW69: 0.4624 | BX69: 0.4624 | BY69: 0.4761 | BZ69: 0.4624 | CA69: 0.4489 | CB69: 0.4356
BA71: =BA66+BB66 -> 0.5585580247 | BD71: =BD60/BD68 -> 0.9088888889 | BF71: Pexp | BJ71: =BJ69+BJ68 -> 0.5555555556 | BN71: =BN69+BN68 -> 0.5696888889 | BR71: =BR69+BR68 -> 0.5512 | BS71: =BS69+BS68 -> 0.5585580247 | BT71: =BT69+BT68 -> 0.5648 | BU71: 0.5648 | BV71: 0.5512 | BW71: 0.5648 | BX71: 0.5648 | BY71: 0.5722 | BZ71: 0.5648 | CA71: 0.5578 | CB71: 0.5512
BJ72: Within Prüfer
BC73: between | BD73: =(BD71-BA71)/(1-BA71) -> 0.7936056918 | BJ73: =IF(BJ60=1,1,(BJ60-BJ71)/(1-BJ71)) -> 0.76 | BN73: =IF(BN60=1,1,(BN60-BN71)/(1-BN71)) -> 0.845073332 | BR73: =IF(BR60=1,1,(BR60-BR71)/(1-BR71)) -> 0.7029114676 | BS73: 0.7936056918 | BT73: 1 | BU73: 0.9080882353 | BV73: 0.7326203209 | BW73: 1 | BX73: 0.9080882353 | BY73: 0.8597475456 | BZ73: 0.9080882353 | CA73: 0.6834011759 | CB73: 0.7326203209
BT74: =AVERAGE(BT73:BV73) -> 0.8802361854 | BW74: =AVERAGE(BW73:BY73) -> 0.922611927 | BZ74: =AVERAGE(BZ73:CB73) -> 0.774703244
BT75: =AVERAGE(BT73:CB73) -> 0.8591837855
